Workbook

Sheet Calculator
B5: Select a pollutant to calculate AQI | E5: PM10
B7: Select data time frame entered | E7: 24hr
I8: Version.2: Calculates AQI for long-term data and stats for various country methods
B9: Country | C9: Validity | D9: <-- check if selection is valid or not | I9: Assumes all the concentrations are in micro-gm/m3
B10: USA | C10: Valid | I10: Data format must be maintained and entered as shown in "enter_aq_data"
B11: EU | C11: Valid | I11: No.of rows can be different, but columns must be maintained
B12: UK | C12: Valid | E12: Points Read | I12: Data must be pre-cleaned
B13: India | C13: Valid | E13: 364 | I13: No-Data can be put as zero's
B14: China | C14: Valid
B15: S.Korea | C15: Valid
B16: Singapore | C16: Valid | I16: Preferred - 24hr averages for PM2.5, PM10, SO2, and NO2
I17: Preferred - 8hr averages for CO and Ozone

Sheet enter_aq_data
A1: Date | B1: YYYY | C1: MM | D1: DD | E1: PM2.5 | F1: PM10 | G1: SO2 | H1: NO2 | I1: CO | J1: Ozone
A2: 2020-08-04 | B2: =YEAR(A2) -> 2020 | C2: =MONTH(A2) -> 8 | D2: =DAY(A2) -> 4 | E2: 37.53050065 | F2: 83.52854976 | G2: 96.6 | H2: 18.77222222 | I2: 7516.666667 | J2: 17.37444444
A3: 2020-08-05 | B3: 2020 | C3: 8 | D3: 5 | E3: 18.83197704 | F3: 39.69630042 | G3: 61.63416667 | H3: 17.76791667 | I3: 3214.583333 | J3: 23.2875
A4: 2020-08-06 | B4: 2020 | C4: 8 | D4: 6 | E4: 15.28170858 | F4: 32.11872808 | G4: 56.33375 | H4: 17.94833333 | I4: 2168.75 | J4: 35.19958333
A5: 2020-08-07 | B5: 2020 | C5: 8 | D5: 7 | E5: 35.10721325 | F5: 78.22875708 | G5: 49.96166667 | H5: 20.85541667 | I5: 3117.916667 | J5: 43.45708333
A6: 2020-08-08 | B6: 2020 | C6: 8 | D6: 8 | E6: 47.69341229 | F6: 106.4226262 | G6: 39.99916667 | H6: 18.41708333 | I6: 1954.583333 | J6: 54.37333333
A7: 2020-08-09 | B7: 2020 | C7: 8 | D7: 9 | E7: 54.67482917 | F7: 124.5536511 | G7: 36.94791667 | H7: 15.15458333 | I7: 1540.416667 | J7: 50.10208333
A8: 2020-08-10 | B8: 2020 | C8: 8 | D8: 10 | E8: 38.64520129 | F8: 90.08214292 | G8: 40.90291667 | H8: 14.71083333 | I8: 1725.416667 | J8: 48.58333333
A9: 2020-08-11 | B9: 2020 | C9: 8 | D9: 11 | E9: 38.88835354 | F9: 87.77950633 | G9: 42.68208333 | H9: 15.44041667 | I9: 1372.083333 | J9: 63.535
A10: 2020-08-12 | B10: 2020 | C10: 8 | D10: 12 | E10: 58.77403225 | F10: 133.9933867 | G10: 35.31916667 | H10: 18.54833333 | I10: 1912.083333 | J10: 59.00208333
A11: 2020-08-13 | B11: 2020 | C11: 8 | D11: 13 | E11: 50.50808379 | F11: 117.264356 | G11: 32.60125 | H11: 14.83916667 | I11: 1375 | J11: 51.95041667
A12: 2020-08-14 | B12: 2020 | C12: 8 | D12: 14 | E12: 45.58732083 | F12: 107.5864782 | G12: 32.58291667 | H12: 12.705 | I12: 1373.75 | J12: 41.79666667
A13: 2020-08-15 | B13: 2020 | C13: 8 | D13: 15 | E13: 36.35367554 | F13: 86.2826135 | G13: 30.05875 | H13: 10.92958333 | I13: 979.5833333 | J13: 49.32875
A14: 2020-08-16 | B14: 2020 | C14: 8 | D14: 16 | E14: 39.72833404 | F14: 95.44660575 | G14: 28.98708333 | H14: 11.06208333 | I14: 967.5 | J14: 56.9025
A15: 2020-08-17 | B15: 2020 | C15: 8 | D15: 17 | E15: 45.39206221 | F15: 108.6357357 | G15: 30.95541667 | H15: 12.47291667 | I15: 1398.75 | J15: 56.5125
A16: 2020-08-18 | B16: 2020 | C16: 8 | D16: 18 | E16: 47.26114162 | F16: 110.9401628 | G16: 29.26416667 | H16: 12.66833333 | I16: 1119.583333 | J16: 57.22458333
A17: 2020-08-19 | B17: 2020 | C17: 8 | D17: 19 | E17: 48.45357008 | F17: 113.6671577 | G17: 30.89708333 | H17: 12.00166667 | I17: 1263.75 | J17: 52.07208333
A18: 2020-08-20 | B18: 2020 | C18: 8 | D18: 20 | E18: 36.51823313 | F18: 89.39278438 | G18: 27.10416667 | H18: 11.46 | I18: 865 | J18: 44.79333333
A19: 2020-08-21 | B19: 2020 | C19: 8 | D19: 21 | E19: 31.474666 | F19: 80.459772 | G19: 28.97208333 | H19: 12.84541667 | I19: 1267.916667 | J19: 45.31375
A20: 2020-08-22 | B20: 2020 | C20: 8 | D20: 22 | E20: 31.4304565 | F20: 79.53406196 | G20: 26.3325 | H20: 11.04625 | I20: 949.5833333 | J20: 43.83458333
A21: 2020-08-23 | B21: 2020 | C21: 8 | D21: 23 | E21: 40.77585358 | F21: 95.37856517 | G21: 26.88458333 | H21: 9.36 | I21: 749.5833333 | J21: 46.60875
A22: 2020-08-24 | B22: 2020 | C22: 8 | D22: 24 | E22: 35.99754346 | F22: 84.30764604 | G22: 30.4 | H22: 11.21541667 | I22: 1276.25 | J22: 41.035
A23: 2020-08-25 | B23: 2020 | C23: 8 | D23: 25 | E23: 30.85082083 | F23: 73.81149079 | G23: 28.02333333 | H23: 12.15833333 | I23: 1148.333333 | J23: 33.24916667
A24: 2020-08-26 | B24: 2020 | C24: 8 | D24: 26 | E24: 50.91088146 | F24: 119.3825667 | G24: 32.5975 | H24: 13.66125 | I24: 1545 | J24: 35.92791667
A25: 2020-08-27 | B25: 2020 | C25: 8 | D25: 27 | E25: 39.87078687 | F25: 91.91565758 | G25: 27.8825 | H25: 11.77833333 | I25: 989.1666667 | J25: 38.58458333
A26: 2020-08-28 | B26: 2020 | C26: 8 | D26: 28 | E26: 43.30561942 | F26: 100.700055 | G26: 29.40333333 | H26: 10.8825 | I26: 1197.083333 | J26: 38.46583333
A27: 2020-08-29 | B27: 2020 | C27: 8 | D27: 29 | E27: 44.23524696 | F27: 103.2265093 | G27: 27.87875 | H27: 10.60833333 | I27: 953.3333333 | J27: 37.88291667
A28: 2020-08-30 | B28: 2020 | C28: 8 | D28: 30 | E28: 36.89892604 | F28: 88.59241225 | G28: 28.05541667 | H28: 9.303333333 | I28: 1037.916667 | J28: 35.09833333
A29: 2020-08-31 | B29: 2020 | C29: 8 | D29: 31 | E29: 34.89721812 | F29: 84.08561887 | G29: 29.215 | H29: 11.03041667 | I29: 1171.25 | J29: 38.65
A30: 2020-09-01 | B30: 2020 | C30: 9 | D30: 1 | E30: 42.33792258 | F30: 103.9731652 | G30: 27.5675 | H30: 13.24791667 | I30: 1128.75 | J30: 33.30125
A31: 2020-09-02 | B31: 2020 | C31: 9 | D31: 2 | E31: 31.18484817 | F31: 76.764094 | G31: 30.17583333 | H31: 13.50333333 | I31: 1400.416667 | J31: 31.55041667
A32: 2020-09-03 | B32: 2020 | C32: 9 | D32: 3 | E32: 24.25500904 | F32: 58.95357604 | G32: 27.78458333 | H32: 11.8275 | I32: 979.5833333 | J32: 36.33833333
A33: 2020-09-04 | B33: 2020 | C33: 9 | D33: 4 | E33: 33.72198225 | F33: 82.64781392 | G33: 30.48708333 | H33: 13.2025 | I33: 1346.666667 | J33: 30.61958333
A34: 2020-09-05 | B34: 2020 | C34: 9 | D34: 5 | E34: 21.91190554 | F34: 57.53904812 | G34: 25.86166667 | H34: 11.71416667 | I34: 820.4166667 | J34: 30.61541667
A35: 2020-09-06 | B35: 2020 | C35: 9 | D35: 6 | E35: 21.14683558 | F35: 52.99286283 | G35: 25.95041667 | H35: 11.88041667 | I35: 793.75 | J35: 32.88083333
A36: 2020-09-07 | B36: 2020 | C36: 9 | D36: 7 | E36: 30.43942688 | F36: 71.41216496 | G36: 30.32583333 | H36: 13.39916667 | I36: 1369.583333 | J36: 34.14416667
A37: 2020-09-08 | B37: 2020 | C37: 9 | D37: 8 | E37: 35.68562087 | F37: 83.34254408 | G37: 28.57208333 | H37: 13.75458333 | I37: 1176.666667 | J37: 34.63208333
A38: 2020-09-09 | B38: 2020 | C38: 9 | D38: 9 | E38: 38.30134963 | F38: 92.58711071 | G38: 35.72666667 | H38: 22.70291667 | I38: 2432.083333 | J38: 19.18041667
A39: 2020-09-10 | B39: 2020 | C39: 9 | D39: 10 | E39: 28.822096 | F39: 64.91070817 | G39: 35.37875 | H39: 15.885 | I39: 2095.833333 | J39: 35.74125
A40: 2020-09-11 | B40: 2020 | C40: 9 | D40: 11 | E40: 27.40616396 | F40: 65.30820842 | G40: 31.83708333 | H40: 15.595 | I40: 1557.5 | J40: 33.37875
A41: 2020-09-12 | B41: 2020 | C41: 9 | D41: 12 | E41: 28.26824921 | F41: 70.26800883 | G41: 25.66666667 | H41: 15.24208333 | I41: 955 | J41: 31.11625
A42: 2020-09-13 | B42: 2020 | C42: 9 | D42: 13 | E42: 27.01564671 | F42: 64.77641754 | G42: 24.3825 | H42: 17.58916667 | I42: 1243.75 | J42: 54.38
A43: 2020-09-14 | B43: 2020 | C43: 9 | D43: 14 | E43: 23.56607767 | F43: 58.69573804 | G43: 33.07458333 | H43: 18.6625 | I43: 1932.5 | J43: 24.81416667
A44: 2020-09-15 | B44: 2020 | C44: 9 | D44: 15 | E44: 48.34673046 | F44: 111.9876297 | G44: 32.25083333 | H44: 27.14291667 | I44: 2107.5 | J44: 26.33166667
A45: 2020-09-16 | B45: 2020 | C45: 9 | D45: 16 | E45: 57.09284321 | F45: 132.3604127 | G45: 33.26458333 | H45: 24.23625 | I45: 2306.25 | J45: 30.98208333
A46: 2020-09-17 | B46: 2020 | C46: 9 | D46: 17 | E46: 32.75060129 | F46: 76.6136885 | G46: 25.12208333 | H46: 17.08 | I46: 1108.75 | J46: 46.39666667
A47: 2020-09-18 | B47: 2020 | C47: 9 | D47: 18 | E47: 60.74626717 | F47: 141.0033574 | G47: 31.41625 | H47: 23.26333333 | I47: 1830 | J47: 42.84666667
A48: 2020-09-19 | B48: 2020 | C48: 9 | D48: 19 | E48: 36.85962871 | F48: 85.59683604 | G48: 21.69875 | H48: 24.17083333 | I48: 1247.083333 | J48: 65.64083333
A49: 2020-09-20 | B49: 2020 | C49: 9 | D49: 20 | E49: 41.20321208 | F49: 98.46187792 | G49: 25.23875 | H49: 22.26291667 | I49: 1323.333333 | J49: 35.9175
A50: 2020-09-21 | B50: 2020 | C50: 9 | D50: 21 | E50: 42.41774529 | F50: 97.37680967 | G50: 33.82416667 | H50: 19.91208333 | I50: 2045.833333 | J50: 34.34583333
A51: 2020-09-22 | B51: 2020 | C51: 9 | D51: 22 | E51: 29.26541904 | F51: 74.30388975 | G51: 27.29666667 | H51: 17.60833333 | I51: 1170.833333 | J51: 24.65125
A52: 2020-09-23 | B52: 2020 | C52: 9 | D52: 23 | E52: 28.26947725 | F52: 67.7182775 | G52: 31.49583333 | H52: 17.17958333 | I52: 1632.916667 | J52: 33.92875
A53: 2020-09-24 | B53: 2020 | C53: 9 | D53: 24 | E53: 32.66463837 | F53: 78.10162862 | G53: 22.69208333 | H53: 28.4675 | I53: 1482.083333 | J53: 56.31083333
A54: 2020-09-25 | B54: 2020 | C54: 9 | D54: 25 | E54: 38.75326896 | F54: 86.02119442 | G54: 31.85833333 | H54: 25.64333333 | I54: 2089.583333 | J54: 49.5
A55: 2020-09-26 | B55: 2020 | C55: 9 | D55: 26 | E55: 57.06214217 | F55: 128.7542618 | G55: 30.82375 | H55: 29.96333333 | I55: 2017.916667 | J55: 28.25791667
A56: 2020-09-27 | B56: 2020 | C56: 9 | D56: 27 | E56: 43.92209633 | F56: 100.3831291 | G56: 26.90125 | H56: 20.605 | I56: 1374.583333 | J56: 32.62291667
A57: 2020-09-28 | B57: 2020 | C57: 9 | D57: 28 | E57: 42.59089917 | F57: 98.13241825 | G57: 30.29458333 | H57: 17.98583333 | I57: 1477.083333 | J57: 29.97125
A58: 2020-09-29 | B58: 2020 | C58: 9 | D58: 29 | E58: 29.70382992 | F58: 70.275171 | G58: 27.26833333 | H58: 16.76541667 | I58: 1028.333333 | J58: 30.59625
A59: 2020-09-30 | B59: 2020 | C59: 9 | D59: 30 | E59: 27.66405271 | F59: 70.80696188 | G59: 28.99708333 | H59: 17.34208333 | I59: 1460 | J59: 18.36083333
A60: 2020-10-01 | B60: 2020 | C60: 10 | D60: 1 | E60: 19.28389638 | F60: 49.175428 | G60: 26.22875 | H60: 14.90541667 | I60: 875.8333333 | J60: 30.59291667
A61: 2020-10-02 | B61: 2020 | C61: 10 | D61: 2 | E61: 29.28138358 | F61: 71.30115138 | G61: 31.27875 | H61: 18.7225 | I61: 1596.666667 | J61: 27.44666667
A62: 2020-10-03 | B62: 2020 | C62: 10 | D62: 3 | E62: 26.50723746 | F62: 65.290303 | G62: 27.27291667 | H62: 16.12458333 | I62: 1084.166667 | J62: 23.15333333
A63: 2020-10-04 | B63: 2020 | C63: 10 | D63: 4 | E63: 32.506221 | F63: 77.623554 | G63: 28.94208333 | H63: 16.11125 | I63: 1225.416667 | J63: 28.59708333
A64: 2020-10-05 | B64: 2020 | C64: 10 | D64: 5 | E64: 38.01030375 | F64: 89.59332504 | G64: 33.28958333 | H64: 19.92333333 | I64: 1823.333333 | J64: 30.16041667
A65: 2020-10-06 | B65: 2020 | C65: 10 | D65: 6 | E65: 28.99033771 | F65: 69.8669275 | G65: 68.31375 | H65: 27.92583333 | I65: 2213.333333 | J65: 30.99833333
A66: 2020-10-07 | B66: =YEAR(A66) -> 2020 | C66: =MONTH(A66) -> 10 | D66: =DAY(A66) -> 7 | E66: 16.55764387 | F66: 42.76170775 | G66: 255.6054167 | H66: 22.60458333 | I66: 3032.083333 | J66: 25.295
A67: 2020-10-08 | B67: 2020 | C67: 10 | D67: 8 | E67: 27.92808167 | F67: 61.96705767 | G67: 218.3820833 | H67: 27.1475 | I67: 3047.083333 | J67: 34.91166667
A68: 2020-10-09 | B68: 2020 | C68: 10 | D68: 9 | E68: 25.33322962 | F68: 61.70026696 | G68: 49.52583333 | H68: 33.61666667 | I68: 4198.333333 | J68: 29.69083333
A69: 2020-10-10 | B69: 2020 | C69: 10 | D69: 10 | E69: 45.56030392 | F69: 99.41981771 | G69: 102.9504167 | H69: 25.12166667 | I69: 3562.083333 | J69: 52.90291667
A70: 2020-10-11 | B70: 2020 | C70: 10 | D70: 11 | E70: 27.29195608 | F70: 68.470305 | G70: 115.8645833 | H70: 22.18208333 | I70: 2625 | J70: 53.33583333
A71: 2020-10-12 | B71: 2020 | C71: 10 | D71: 12 | E71: 38.6218685 | F71: 87.82606042 | G71: 93.80458333 | H71: 24.82333333 | I71: 4273.333333 | J71: 54.43333333
A72: 2020-10-13 | B72: 2020 | C72: 10 | D72: 13 | E72: 55.84515287 | F72: 117.9375996 | G72: 81.45666667 | H72: 31.01666667 | I72: 3022.916667 | J72: 49.46625
A73: 2020-10-14 | B73: 2020 | C73: 10 | D73: 14 | E73: 40.33621467 | F73: 92.54055663 | G73: 99.9425 | H73: 32.00458333 | I73: 5462.916667 | J73: 31.81125
A74: 2020-10-15 | B74: 2020 | C74: 10 | D74: 15 | E74: 56.4825065 | F74: 109.01354 | G74: 88.16875 | H74: 26.22875 | I74: 3326.666667 | J74: 56.575
A75: 2020-10-16 | B75: 2020 | C75: 10 | D75: 16 | E75: 30.11031171 | F75: 74.43101821 | G75: 93.94791667 | H75: 24.93583333 | I75: 4372.5 | J75: 38.84916667
A76: 2020-10-17 | B76: 2020 | C76: 10 | D76: 17 | E76: 64.86266283 | F76: 131.8805476 | G76: 92.15375 | H76: 26.36916667 | I76: 3857.916667 | J76: 44.54625
A77: 2020-10-18 | B77: 2020 | C77: 10 | D77: 18 | E77: 71.23005888 | F77: 129.9521342 | G77: 102.9491667 | H77: 24.84916667 | I77: 3397.916667 | J77: 45.14291667
A78: 2020-10-19 | B78: 2020 | C78: 10 | D78: 19 | E78: 29.10822971 | F78: 69.89736671 | G78: 81.76958333 | H78: 19.78875 | I78: 3301.666667 | J78: 41.28166667
A79: 2020-10-20 | B79: 2020 | C79: 10 | D79: 20 | E79: 51.36771296 | F79: 107.727931 | G79: 95.74125 | H79: 26.71916667 | I79: 3052.083333 | J79: 45.54625
A80: 2020-10-21 | B80: 2020 | C80: 10 | D80: 21 | E80: 118.6349233 | F80: 268.6779309 | G80: 81.88083333 | H80: 17.495 | I80: 2192.083333 | J80: 37.81083333
A81: 2020-10-22 | B81: 2020 | C81: 10 | D81: 22 | E81: 46.77606517 | F81: 95.60954504 | G81: 74.09916667 | H81: 19.64458333 | I81: 1597.5 | J81: 39.68333333
A82: 2020-10-23 | B82: 2020 | C82: 10 | D82: 23 | E82: 22.06295467 | F82: 54.58107329 | G82: 70.67333333 | H82: 14.15375 | I82: 1352.916667 | J82: 37.88083333
A83: 2020-10-24 | B83: 2020 | C83: 10 | D83: 24 | E83: 20.74526596 | F83: 51.32586854 | G83: 71.26916667 | H83: 14.39125 | I83: 1513.75 | J83: 35.12916667
A84: 2020-10-25 | B84: 2020 | C84: 10 | D84: 25 | E84: 26.02093296 | F84: 62.06374692 | G84: 71.14333333 | H84: 19.035 | I84: 1675.833333 | J84: 48.47875
A85: 2020-10-26 | B85: 2020 | C85: 10 | D85: 26 | E85: 61.37011233 | F85: 125.0961852 | G85: 82.92541667 | H85: 27.15291667 | I85: 3388.75 | J85: 49.54833333
A86: 2020-10-27 | B86: 2020 | C86: 10 | D86: 27 | E86: 60.17522779 | F86: 121.8373994 | G86: 83.89208333 | H86: 31.4325 | I86: 3423.333333 | J86: 53.35125
A87: 2020-10-28 | B87: 2020 | C87: 10 | D87: 28 | E87: 42.762825 | F87: 97.48245163 | G87: 77.30583333 | H87: 32.18416667 | I87: 3102.083333 | J87: 71.82291667
A88: 2020-10-29 | B88: 2020 | C88: 10 | D88: 29 | E88: 26.44337929 | F88: 60.68682037 | G88: 81.53291667 | H88: 24.42208333 | I88: 3032.083333 | J88: 30.80333333
A89: 2020-10-30 | B89: 2020 | C89: 10 | D89: 30 | E89: 33.11443655 | F89: 70.56426209 | G89: 37.81363636 | H89: 29.04909091 | I89: 2335.909091 | J89: 27.07636364
A90: 2020-10-31 | B90: 2020 | C90: 10 | D90: 31 | E90: 25.08148108 | F90: 55.88458762 | G90: 53.08208333 | H90: 25.00125 | I90: 2206.25 | J90: 35.36541667
A91: 2020-11-01 | B91: 2020 | C91: 11 | D91: 1 | E91: 15.2792525 | F91: 33.30048558 | G91: 69.74458333 | H91: 21.93458333 | I91: 1571.666667 | J91: 43.13541667
A92: 2020-11-02 | B92: 2020 | C92: 11 | D92: 2 | E92: 35.32334858 | F92: 75.51250537 | G92: 63.51583333 | H92: 28.69958333 | I92: 2824.166667 | J92: 32.70291667
A93: 2020-11-03 | B93: 2020 | C93: 11 | D93: 3 | E93: 59.36594833 | F93: 138.2620381 | G93: 44.44375 | H93: 26.34208333 | I93: 2690.833333 | J93: 54.5575
A94: 2020-11-04 | B94: 2020 | C94: 11 | D94: 4 | E94: 39.019754 | F94: 94.12876708 | G94: 37.7 | H94: 31.38958333 | I94: 1845.833333 | J94: 40.08916667
A95: 2020-11-05 | B95: 2020 | C95: 11 | D95: 5 | E95: 61.72010421 | F95: 140.5772085 | G95: 36.88541667 | H95: 31.31625 | I95: 2462.083333 | J95: 58.30583333
A96: 2020-11-06 | B96: 2020 | C96: 11 | D96: 6 | E96: 36.75156104 | F96: 84.59592325 | G96: 32.02708333 | H96: 22.99166667 | I96: 1731.666667 | J96: 42.9775
A97: 2020-11-07 | B97: 2020 | C97: 11 | D97: 7 | E97: 32.60200825 | F97: 78.40243962 | G97: 30.26 | H97: 22.39958333 | I97: 1608.333333 | J97: 50.18083333
A98: 2020-11-08 | B98: 2020 | C98: 11 | D98: 8 | E98: 43.31667179 | F98: 104.9167806 | G98: 25.62375 | H98: 25.5875 | I98: 1460.416667 | J98: 65.78125
A99: 2020-11-09 | B99: 2020 | C99: 11 | D99: 9 | E99: 42.98878467 | F99: 98.938162 | G99: 33.02333333 | H99: 28.6075 | I99: 2418.75 | J99: 40.48125
A100: 2020-11-10 | B100: 2020 | C100: 11 | D100: 10 | E100: 34.71055579 | F100: 77.58416208 | G100: 31.22166667 | H100: 24.11458333 | I100: 2027.083333 | J100: 44.0425
A101: 2020-11-11 | B101: 2020 | C101: 11 | D101: 11 | E101: 58.8403465 | F101: 129.6244651 | G101: 35.87083333 | H101: 37.195 | I101: 3245.416667 | J101: 42.91458333
A102: 2020-11-12 | B102: 2020 | C102: 11 | D102: 12 | E102: 67.64417721 | F102: 146.403631 | G102: 36.33708333 | H102: 32.93708333 | I102: 2845.833333 | J102: 57.79375
A103: 2020-11-13 | B103: 2020 | C103: 11 | D103: 13 | E103: 55.41779437 | F103: 127.386288 | G103: 31.22416667 | H103: 33.16916667 | I103: 2273.75 | J103: 66.16916667
A104: 2020-11-14 | B104: 2020 | C104: 11 | D104: 14 | E104: 59.267705 | F104: 134.1778125 | G104: 33.515 | H104: 29.92958333 | I104: 2719.166667 | J104: 54.67083333
A105: 2020-11-15 | B105: 2020 | C105: 11 | D105: 15 | E105: 46.92957038 | F105: 104.6607332 | G105: 29.41125 | H105: 24.57166667 | I105: 1963.333333 | J105: 50.03583333
A106: 2020-11-16 | B106: 2020 | C106: 11 | D106: 16 | E106: 51.30139871 | F106: 116.9492206 | G106: 32.1425 | H106: 27.395 | I106: 2344.166667 | J106: 48.63583333
A107: 2020-11-17 | B107: 2020 | C107: 11 | D107: 17 | E107: 51.74717783 | F107: 117.4040182 | G107: 30.2025 | H107: 31.985 | I107: 2422.916667 | J107: 53.26125
A108: 2020-11-18 | B108: 2020 | C108: 11 | D108: 18 | E108: 45.08013962 | F108: 106.696579 | G108: 27.81916667 | H108: 29.7225 | I108: 1920 | J108: 53.09958333
A109: 2020-11-19 | B109: 2020 | C109: 11 | D109: 19 | E109: 49.16337817 | F109: 114.6823949 | G109: 27.15125 | H109: 33.65666667 | I109: 1898.75 | J109: 46.37291667
A110: 2020-11-20 | B110: 2020 | C110: 11 | D110: 20 | E110: 69.49606404 | F110: 153.3383989 | G110: 31.00083333 | H110: 32.87041667 | I110: 2541.666667 | J110: 60.74333333
A111: 2020-11-21 | B111: 2020 | C111: 11 | D111: 21 | E111: 57.54476254 | F111: 134.7454143 | G111: 25.23125 | H111: 29.41625 | I111: 1821.25 | J111: 64.75541667
A112: 2020-11-22 | B112: 2020 | C112: 11 | D112: 22 | E112: 57.63072546 | F112: 126.7506457 | G112: 24.58416667 | H112: 24.63833333 | I112: 1360 | J112: 62.33625
A113: 2020-11-23 | B113: 2020 | C113: 11 | D113: 23 | E113: 45.9311725 | F113: 108.1433367 | G113: 24.82875 | H113: 26.22375 | I113: 1400 | J113: 52.65625
A114: 2020-11-24 | B114: 2020 | C114: 11 | D114: 24 | E114: 43.62736633 | F114: 102.5962386 | G114: 26.40416667 | H114: 30.25541667 | I114: 1769.583333 | J114: 41.7175
A115: 2020-11-25 | B115: 2020 | C115: 11 | D115: 25 | E115: 46.27134004 | F115: 106.7968494 | G115: 27.25666667 | H115: 30.11458333 | I115: 1900 | J115: 50.33666667
A116: 2020-11-26 | B116: 2020 | C116: 11 | D116: 26 | E116: 39.39185063 | F116: 90.48322425 | G116: 24.44583333 | H116: 26.01166667 | I116: 1412.083333 | J116: 51.50375
A117: 2020-11-27 | B117: 2020 | C117: 11 | D117: 27 | E117: 35.72246213 | F117: 81.17956975 | G117: 25.97 | H117: 27.23125 | I117: 1445.833333 | J117: 48.695
A118: 2020-11-28 | B118: 2020 | C118: 11 | D118: 28 | E118: 48.28041621 | F118: 110.4674598 | G118: 31.18875 | H118: 26.1675 | I118: 1496.25 | J118: 44.85458333
A119: 2020-11-29 | B119: 2020 | C119: 11 | D119: 29 | E119: 47.52885471 | F119: 108.802256 | G119: 32.6975 | H119: 24.27625 | I119: 1650.833333 | J119: 51.69458333
A120: 2020-11-30 | B120: 2020 | C120: 11 | D120: 30 | E120: 48.78145721 | F120: 113.5597252 | G120: 34.46041667 | H120: 26.11333333 | I120: 1940 | J120: 46.90541667
A121: 2020-12-01 | B121: 2020 | C121: 12 | D121: 1 | E121: 50.28212413 | F121: 116.3959432 | G121: 30.33875 | H121: 23.11166667 | I121: 1503.75 | J121: 50.96625
A122: 2020-12-02 | B122: 2020 | C122: 12 | D122: 2 | E122: 55.13780087 | F122: 127.4973016 | G122: 71.80291667 | H122: 17.99791667 | I122: 2099.583333 | J122: 56.77166667
A123: 2020-12-03 | B123: 2020 | C123: 12 | D123: 3 | E123: 49.25425325 | F123: 113.9805025 | G123: 40.90041667 | H123: 19.47125 | I123: 1575 | J123: 41.465
A124: 2020-12-04 | B124: 2020 | C124: 12 | D124: 4 | E124: 50.49457533 | F124: 114.1667189 | G124: 35.18666667 | H124: 21.01 | I124: 1500 | J124: 40.82166667
A125: 2020-12-05 | B125: 2020 | C125: 12 | D125: 5 | E125: 45.13908562 | F125: 101.106508 | G125: 31.69916667 | H125: 18.98666667 | I125: 1308.75 | J125: 45.62291667
A126: 2020-12-06 | B126: 2020 | C126: 12 | D126: 6 | E126: 45.75187842 | F126: 103.8102259 | G126: 27.0175 | H126: 17.53541667 | I126: 878.3333333 | J126: 44.33666667
A127: 2020-12-07 | B127: 2020 | C127: 12 | D127: 7 | E127: 47.23412471 | F127: 107.384147 | G127: 28.51625 | H127: 20.76333333 | I127: 1306.25 | J127: 41.1725
A128: 2020-12-08 | B128: 2020 | C128: 12 | D128: 8 | E128: 51.78279104 | F128: 118.814965 | G128: 27.8775 | H128: 31.02125 | I128: 1916.666667 | J128: 46.125
A129: 2020-12-09 | B129: 2020 | C129: 12 | D129: 9 | E129: 57.34336371 | F129: 126.3173346 | G129: 29.88625 | H129: 25.28083333 | I129: 1727.083333 | J129: 42.46875
A130: 2020-12-10 | B130: =YEAR(A130) -> 2020 | C130: =MONTH(A130) -> 12 | D130: =DAY(A130) -> 10 | E130: 47.1395655 | F130: 105.880092 | G130: 27.3075 | H130: 21.44833333 | I130: 1347.5 | J130: 40.7875
A131: 2020-12-11 | B131: 2020 | C131: 12 | D131: 11 | E131: 48.44865792 | F131: 109.638439 | G131: 28.49916667 | H131: 22.31291667 | I131: 1514.166667 | J131: 36.93583333
A132: 2020-12-12 | B132: 2020 | C132: 12 | D132: 12 | E132: 48.78514133 | F132: 111.509555 | G132: 28.70666667 | H132: 21.49625 | I132: 1442.083333 | J132: 35.45625
A133: 2020-12-13 | B133: 2020 | C133: 12 | D133: 13 | E133: 50.82123442 | F133: 115.1515168 | G133: 27.53333333 | H133: 24.8375 | I133: 1581.25 | J133: 29.575
A134: 2020-12-14 | B134: 2020 | C134: 12 | D134: 14 | E134: 66.32157633 | F134: 150.4932282 | G134: 43.52 | H134: 31.08583333 | I134: 2774.583333 | J134: 33.97208333
A135: 2020-12-15 | B135: 2020 | C135: 12 | D135: 15 | E135: 53.71572862 | F135: 120.8848312 | G135: 31.39083333 | H135: 28.23791667 | I135: 2138.333333 | J135: 41.55
A136: 2020-12-16 | B136: 2020 | C136: 12 | D136: 16 | E136: 59.26647696 | F136: 133.8590961 | G136: 34.08041667 | H136: 33.17708333 | I136: 2610 | J136: 37.75375
A137: 2020-12-17 | B137: 2020 | C137: 12 | D137: 17 | E137: 53.54503083 | F137: 125.1033474 | G137: 28.16958333 | H137: 30.81791667 | I137: 1825.833333 | J137: 39.275
A138: 2020-12-18 | B138: 2020 | C138: 12 | D138: 18 | E138: 57.13336858 | F138: 129.5224042 | G138: 29.12416667 | H138: 31.23375 | I138: 1972.916667 | J138: 43.17791667
A139: 2020-12-19 | B139: 2020 | C139: 12 | D139: 19 | E139: 54.09396546 | F139: 123.2555084 | G139: 27.12958333 | H139: 26.7575 | I139: 1638.333333 | J139: 48.735
A140: 2020-12-20 | B140: 2020 | C140: 12 | D140: 20 | E140: 55.59463238 | F140: 128.1096668 | G140: 26.22333333 | H140: 24.5375 | I140: 1425.416667 | J140: 47.39708333
A141: 2020-12-21 | B141: 2020 | C141: 12 | D141: 21 | E141: 60.28575154 | F141: 141.7518038 | G141: 29.08625 | H141: 30.16041667 | I141: 2105.416667 | J141: 44.35541667
A142: 2020-12-22 | B142: 2020 | C142: 12 | D142: 22 | E142: 71.91653417 | F142: 164.4343856 | G142: 30.50708333 | H142: 30.03166667 | I142: 2330.416667 | J142: 45.25333333
A143: 2020-12-23 | B143: 2020 | C143: 12 | D143: 23 | E143: 63.18147379 | F143: 147.9309631 | G143: 29.2125 | H143: 29.57333333 | I143: 2167.083333 | J143: 48.24666667
A144: 2020-12-24 | B144: 2020 | C144: 12 | D144: 24 | E144: 67.81733108 | F144: 152.0474184 | G144: 30.58 | H144: 28.30875 | I144: 2277.083333 | J144: 44.42416667
A145: 2020-12-25 | B145: 2020 | C145: 12 | D145: 25 | E145: 73.64930096 | F145: 162.8891482 | G145: 29.61583333 | H145: 26.97916667 | I145: 2214.583333 | J145: 58.60666667
A146: 2020-12-26 | B146: 2020 | C146: 12 | D146: 26 | E146: 78.78742729 | F146: 175.7380752 | G146: 28.64333333 | H146: 29.97916667 | I146: 2072.083333 | J146: 67.1325
A147: 2020-12-27 | B147: 2020 | C147: 12 | D147: 27 | E147: 98.19785387 | F147: 216.2580331 | G147: 29.91083333 | H147: 29.68791667 | I147: 2486.666667 | J147: 63.07916667
A148: 2020-12-28 | B148: 2020 | C148: 12 | D148: 28 | E148: 99.63834675 | F148: 218.3690817 | G148: 29.79666667 | H148: 29.29625 | I148: 2425.833333 | J148: 59.92875
A149: 2020-12-29 | B149: 2020 | C149: 12 | D149: 29 | E149: 91.71624996 | F149: 210.3957997 | G149: 29.3475 | H149: 34.61041667 | I149: 2562.5 | J149: 60.38166667
A150: 2020-12-30 | B150: 2020 | C150: 12 | D150: 30 | E150: 94.46215112 | F150: 224.8562142 | G150: 26.49041667 | H150: 33.73458333 | I150: 2209.166667 | J150: 57.17
A151: 2020-12-31 | B151: 2020 | C151: 12 | D151: 31 | E151: 90.30031792 | F151: 206.136101 | G151: 27.80416667 | H151: 27.64125 | I151: 2069.583333 | J151: 54.35541667
A152: 2021-01-01 | B152: 2021 | C152: 1 | D152: 1 | E152: 76.42958729 | F152: 178.5134147 | G152: 24.86625 | H152: 21.95541667 | I152: 1560.833333 | J152: 54.35666667
A153: 2021-01-02 | B153: 2021 | C153: 1 | D153: 2 | E153: 54.78412487 | F153: 136.0113272 | G153: 23.04291667 | H153: 17.28583333 | I153: 988.3333333 | J153: 54.2625
A154: 2021-01-03 | B154: 2021 | C154: 1 | D154: 3 | E154: 56.34619387 | F154: 135.0372725 | G154: 23.36666667 | H154: 17.13541667 | I154: 982.5 | J154: 49.91166667
A155: 2021-01-04 | B155: 2021 | C155: 1 | D155: 4 | E155: 63.86426496 | F155: 150.5451539 | G155: 26.59333333 | H155: 26.26458333 | I155: 1777.916667 | J155: 43.11541667
A156: 2021-01-05 | B156: 2021 | C156: 1 | D156: 5 | E156: 67.76206921 | F156: 160.3823898 | G156: 69.74708333 | H156: 26.24916667 | I156: 2815.833333 | J156: 51.99875
A157: 2021-01-06 | B157: 2021 | C157: 1 | D157: 6 | E157: 56.30198437 | F157: 133.2628457 | G157: 35.28 | H157: 18.875 | I157: 1174.583333 | J157: 42.47416667
A158: 2021-01-07 | B158: 2021 | C158: 1 | D158: 7 | E158: 60.65416404 | F158: 139.5655524 | G158: 30.465 | H158: 36.07 | I158: 2179.166667 | J158: 42.80916667
A159: 2021-01-08 | B159: 2021 | C159: 1 | D159: 8 | E159: 59.92593533 | F159: 136.0381853 | G159: 26.36458333 | H159: 26.69208333 | I159: 1311.666667 | J159: 43.355
A160: 2021-01-09 | B160: 2021 | C160: 1 | D160: 9 | E160: 52.71978683 | F160: 124.3495293 | G160: 25.51708333 | H160: 22.29125 | I160: 1172.083333 | J160: 44.18708333
A161: 2021-01-10 | B161: 2021 | C161: 1 | D161: 10 | E161: 49.68652392 | F161: 116.0915512 | G161: 23.73625 | H161: 19.65083333 | I161: 801.25 | J161: 36.99791667
A162: 2021-01-11 | B162: 2021 | C162: 1 | D162: 11 | E162: 56.585662 | F162: 130.5197359 | G162: 26.07208333 | H162: 22.93708333 | I162: 1326.25 | J162: 38.17666667
A163: 2021-01-12 | B163: 2021 | C163: 1 | D163: 12 | E163: 62.10202517 | F163: 146.3624486 | G163: 24.67583333 | H163: 25.89916667 | I163: 1367.083333 | J163: 40.7025
A164: 2021-01-13 | B164: 2021 | C164: 1 | D164: 13 | E164: 55.99743004 | F164: 131.1428444 | G164: 24.26416667 | H164: 26.27291667 | I164: 1278.75 | J164: 40.35458333
A165: 2021-01-14 | B165: 2021 | C165: 1 | D165: 14 | E165: 53.5646795 | F165: 124.870577 | G165: 26.83291667 | H165: 37.60875 | I165: 1438.75 | J165: 42.40291667
A166: 2021-01-15 | B166: 2021 | C166: 1 | D166: 15 | E166: 53.60766096 | F166: 128.3961535 | G166: 23.29125 | H166: 45.96166667 | I166: 1734.583333 | J166: 32.70333333
A167: 2021-01-16 | B167: 2021 | C167: 1 | D167: 16 | E167: 54.57044562 | F167: 131.7534191 | G167: 19.53375 | H167: 37.25666667 | I167: 1349.583333 | J167: 34.59166667
A168: 2021-01-17 | B168: 2021 | C168: 1 | D168: 17 | E168: 69.97622833 | F168: 161.1039781 | G168: 20.24291667 | H168: 36.59583333 | I168: 1544.166667 | J168: 50.57083333
A169: 2021-01-18 | B169: 2021 | C169: 1 | D169: 18 | E169: 66.13737008 | F169: 152.7331958 | G169: 22.75875 | H169: 50.98458333 | I169: 2093.75 | J169: 20.4575
A170: 2021-01-19 | B170: 2021 | C170: 1 | D170: 19 | E170: 64.59986192 | F170: 152.888973 | G170: 58.945 | H170: 93.72458333 | I170: 3437.5 | J170: 41.25041667
A171: 2021-01-20 | B171: 2021 | C171: 1 | D171: 20 | E171: 74.62190996 | F171: 170.4971597 | G171: 71.36958333 | H171: 45.29041667 | I171: 2680.416667 | J171: 63.61083333
A172: 2021-01-21 | B172: 2021 | C172: 1 | D172: 21 | E172: 119.0352649 | F172: 267.9957345 | G172: 72.285 | H172: 50.92041667 | I172: 4012.5 | J172: 59.01458333
A173: 2021-01-22 | B173: 2021 | C173: 1 | D173: 22 | E173: 201.1740598 | F173: 469.3296112 | G173: 95.50583333 | H173: 62.52375 | I173: 6365 | J173: 60.22041667
A174: 2021-01-23 | B174: 2021 | C174: 1 | D174: 23 | E174: 169.260941 | F174: 362.362652 | G174: 67.89 | H174: 91.97 | I174: 8770 | J174: 9.76
A175: 2021-01-24 | B175: 2021 | C175: 1 | D175: 24 | E175: 155.0119735 | F175: 383.9100304 | G175: 85.86125 | H175: 31.56916667 | I175: 4673.333333 | J175: 66.5075
A176: 2021-01-25 | B176: 2021 | C176: 1 | D176: 25 | E176: 110.0361755 | F176: 264.6545838 | G176: 84.95583333 | H176: 27.48041667 | I176: 3748.333333 | J176: 69.62708333
A177: 2021-01-26 | B177: 2021 | C177: 1 | D177: 26 | E177: 82.07612287 | F177: 206.4154255 | G177: 73.51666667 | H177: 26.455 | I177: 2869.166667 | J177: 74.27916667
A178: 2021-01-27 | B178: 2021 | C178: 1 | D178: 27 | E178: 79.44442958 | F178: 194.0159245 | G178: 77.97 | H178: 25.43583333 | I178: 3038.333333 | J178: 66.20958333
A179: 2021-01-28 | B179: 2021 | C179: 1 | D179: 28 | E179: 72.36476937 | F179: 173.3459115 | G179: 73.83708333 | H179: 24.32041667 | I179: 2763.333333 | J179: 65.47333333
A180: 2021-01-29 | B180: 2021 | C180: 1 | D180: 29 | E180: 69.65325337 | F180: 166.3717517 | G180: 63.51416667 | H180: 22.98833333 | I180: 2479.166667 | J180: 64.68208333
A181: 2021-01-30 | B181: 2021 | C181: 1 | D181: 30 | E181: 64.12829392 | F181: 154.5398524 | G181: 71.15291667 | H181: 22.91583333 | I181: 2337.083333 | J181: 63.83375
A182: 2021-01-31 | B182: 2021 | C182: 1 | D182: 31 | E182: 58.99753583 | F182: 138.7025113 | G182: 66.64375 | H182: 21.06291667 | I182: 2117.916667 | J182: 53.3575
A183: 2021-02-01 | B183: 2021 | C183: 2 | D183: 1 | E183: 59.02209667 | F183: 140.0096068 | G183: 74.55416667 | H183: 24.55291667 | I183: 2603.75 | J183: 50.70208333
A184: 2021-02-02 | B184: 2021 | C184: 2 | D184: 2 | E184: 64.83564592 | F184: 153.0769798 | G184: 77.82 | H184: 28.40458333 | I184: 3351.666667 | J184: 56.79791667
A185: 2021-02-03 | B185: 2021 | C185: 2 | D185: 3 | E185: 62.02957071 | F185: 146.6668407 | G185: 75.2625 | H185: 25.50625 | I185: 2841.25 | J185: 60.59291667
A186: 2021-02-04 | B186: 2021 | C186: 2 | D186: 4 | E186: 57.79651108 | F186: 143.1054533 | G186: 59.73708333 | H186: 24.1375 | I186: 2407.5 | J186: 63.57958333
A187: 2021-02-05 | B187: 2021 | C187: 2 | D187: 5 | E187: 53.39275367 | F187: 130.7238577 | G187: 80.57791667 | H187: 24.11333333 | I187: 2775.416667 | J187: 58.81833333
A188: 2021-02-06 | B188: 2021 | C188: 2 | D188: 6 | E188: 56.28847592 | F188: 132.8546022 | G188: 75.83958333 | H188: 21.33958333 | I188: 2240.833333 | J188: 61.63083333
A189: 2021-02-07 | B189: 2021 | C189: 2 | D189: 7 | E189: 52.27646379 | F189: 126.761389 | G189: 73.0675 | H189: 19.49125 | I189: 1914.166667 | J189: 64.00583333
A190: 2021-02-08 | B190: 2021 | C190: 2 | D190: 8 | E190: 50.60018692 | F190: 124.2707455 | G190: 77.25291667 | H190: 21.61041667 | I190: 2453.333333 | J190: 64.52958333
A191: 2021-02-09 | B191: 2021 | C191: 2 | D191: 9 | E191: 49.76143446 | F191: 119.8731752 | G191: 67.00875 | H191: 22.71208333 | I191: 2227.5 | J191: 75.05166667
A192: 2021-02-10 | B192: 2021 | C192: 2 | D192: 10 | E192: 49.46302033 | F192: 118.9367219 | G192: 68.135 | H192: 23.13416667 | I192: 2620.833333 | J192: 60.72375
A193: 2021-02-11 | B193: 2021 | C193: 2 | D193: 11 | E193: 45.79731596 | F193: 112.4639138 | G193: 58.17333333 | H193: 24.20958333 | I193: 2551.25 | J193: 40.31541667
A194: 2021-02-12 | B194: =YEAR(A194) -> 2021 | C194: =MONTH(A194) -> 2 | D194: =DAY(A194) -> 12 | E194: 46.26151571 | F194: 112.8721573 | G194: 80.95875 | H194: 20.67541667 | I194: 2933.75 | J194: 56.86125
A195: 2021-02-13 | B195: 2021 | C195: 2 | D195: 13 | E195: 46.42975742 | F195: 113.7280362 | G195: 114.1270833 | H195: 18.95458333 | I195: 3020 | J195: 74.415
A196: 2021-02-14 | B196: 2021 | C196: 2 | D196: 14 | E196: 42.33055433 | F196: 100.0715749 | G196: 118.9966667 | H196: 15.61083333 | I196: 2605.833333 | J196: 78.26291667
A197: 2021-02-15 | B197: 2021 | C197: 2 | D197: 15 | E197: 42.30844958 | F197: 98.17181017 | G197: 115.6558333 | H197: 21.36375 | I197: 3022.083333 | J197: 78.80166667
A198: 2021-02-16 | B198: 2021 | C198: 2 | D198: 16 | E198: 45.56890021 | F198: 107.8550595 | G198: 164.6170833 | H198: 21.02416667 | I198: 3629.583333 | J198: 93.03375
A199: 2021-02-17 | B199: 2021 | C199: 2 | D199: 17 | E199: 61.41186575 | F199: 139.7750458 | G199: 94.48916667 | H199: 20.94541667 | I199: 2599.166667 | J199: 72.80208333
A200: 2021-02-18 | B200: 2021 | C200: 2 | D200: 18 | E200: 94.29513746 | F200: 222.614456 | G200: 83.33916667 | H200: 30.23791667 | I200: 3247.083333 | J200: 80.78458333
... 165 more rows

Sheet aqi_data
A1: CALCULATED AQI USING COUNTRY SPECIFIC METHODOLOGY | G1: =INDEX(Country!H9:H16,Country!G7) -> PM10
A4: USA | B4: EU | C4: UK | D4: India | E4: China | F4: S.Korea | G4: Singapore
A5: 64.76427488 | B5: 267.0570995 | C5: 7.066068721 | D5: 83.52854976 | E5: 66.76427488 | F5: 104.4106872 | G5: 66.76427488
A6: 36.75583372 | B6: 99.24075104 | C6: 2.393900025 | D6: 39.69630042 | E6: 39.69630042 | F6: 59.69630042 | G6: 39.69630042
A7: 29.73956304 | B7: 80.29682021 | C7: 1.948160475 | D7: 32.11872808 | E7: 32.11872808 | F7: 52.11872808 | G7: 32.11872808
A8: 62.11437854 | B8: 256.4575142 | C8: 6.403594635 | D8: 78.22875708 | E8: 64.11437854 | F8: 98.22875708 | G8: 64.11437854
A9: 76.21131308 | B9: 312.8452523 | C9: 9.128452523 | D9: 104.2817508 | E9: 78.21131308 | F9: 133.0282827 | G9: 78.21131308
A10: 85.27682554 | B10: 349.1073022 | C10: 9.491073022 | D10: 116.3691007 | E10: 87.27682554 | F10: 155.6920639 | G10: 87.27682554
A11: 68.04107146 | B11: 280.1642858 | C11: 7.885267865 | D11: 90.08214292 | E11: 70.04107146 | F11: 112.6026786 | G11: 70.04107146
A12: 66.88975317 | B12: 275.5590127 | C12: 7.597438292 | D12: 87.77950633 | E12: 68.88975317 | F12: 109.7243829 | G12: 68.88975317
A13: 89.99669337 | B13: 367.9867735 | C13: 9.679867735 | D13: 122.6622578 | E13: 91.99669337 | F13: 167.4917334 | G13: 91.99669337
A14: 81.63217798 | B14: 334.5287119 | C14: 9.345287119 | D14: 111.5095706 | E14: 83.63217798 | F14: 146.5804449 | G14: 83.63217798
A15: 76.79323912 | B15: 315.1729565 | C15: 9.151729565 | D15: 105.0576522 | E15: 78.79323912 | F15: 134.4830978 | G15: 78.79323912
A16: 66.14130675 | B16: 272.565227 | C16: 7.410326687 | D16: 86.2826135 | E16: 68.14130675 | F16: 107.8532669 | G16: 68.14130675
A17: 70.72330288 | B17: 290.8932115 | C17: 8.494067306 | D17: 95.44660575 | E17: 72.72330288 | F17: 119.3082572 | G17: 72.72330288
A18: 77.31786783 | B18: 317.2714713 | C18: 9.172714713 | D18: 105.7571571 | E18: 79.31786783 | F18: 135.7946696 | G18: 79.31786783
A19: 78.4700814 | B19: 321.8803256 | C19: 9.218803256 | D19: 107.2934419 | E19: 80.4700814 | F19: 138.6752035 | G19: 80.4700814
A20: 79.83357888 | B20: 327.3343155 | C20: 9.273343155 | D20: 109.1114385 | E20: 81.83357888 | F20: 142.0839472 | G20: 81.83357888
A21: 67.69639219 | B21: 278.7855688 | C21: 7.799098047 | D21: 89.39278438 | E21: 69.69639219 | F21: 111.7409805 | G21: 69.69639219
A22: 63.229886 | B22: 260.919544 | C22: 6.6824715 | D22: 80.459772 | E22: 65.229886 | F22: 100.574715 | G22: 65.229886
A23: 62.76703098 | B23: 259.0681239 | C23: 6.566757745 | D23: 79.53406196 | E23: 64.76703098 | F23: 99.53406196 | G23: 64.76703098
A24: 70.68928258 | B24: 290.7571303 | C24: 8.486507241 | D24: 95.37856517 | E24: 72.68928258 | F24: 119.2232065 | G24: 72.68928258
A25: 65.15382302 | B25: 268.6152921 | C25: 7.163455755 | D25: 84.30764604 | E25: 67.15382302 | F25: 105.3845576 | G25: 67.15382302
A26: 59.9057454 | B26: 247.6229816 | C26: 5.867943421 | D26: 73.81149079 | E26: 61.9057454 | F26: 93.81149079 | G26: 61.9057454
A27: 82.69128337 | B27: 338.7651335 | C27: 9.387651335 | D27: 112.9217112 | E27: 84.69128337 | F27: 149.2282084 | G27: 84.69128337
A28: 68.95782879 | B28: 283.8313152 | C28: 8.101739731 | D28: 91.91565758 | E28: 70.95782879 | F28: 114.894572 | G28: 70.95782879
A29: 73.3500275 | B29: 301.40011 | C29: 9.0140011 | D29: 100.4667033 | E29: 75.3500275 | F29: 125.8750687 | G29: 75.3500275
A30: 74.61325465 | B30: 306.4530186 | C30: 9.064530186 | D30: 102.1510062 | E30: 76.61325465 | F30: 129.0331366 | G30: 76.61325465
A31: 67.29620612 | B31: 277.1848245 | C31: 7.699051531 | D31: 88.59241225 | E31: 69.29620612 | F31: 110.7405153 | G31: 69.29620612
A32: 65.04280944 | B32: 268.1712377 | C32: 7.135702359 | D32: 84.08561887 | E32: 67.04280944 | F32: 105.1070236 | G32: 67.04280944
A33: 74.98658258 | B33: 307.9463303 | C33: 9.079463303 | D33: 102.6487768 | E33: 76.98658258 | F33: 129.9664565 | G33: 76.98658258
A34: 61.382047 | B34: 253.528188 | C34: 6.22051175 | D34: 76.764094 | E34: 63.382047 | F34: 96.764094 | G34: 63.382047
A35: 52.47678802 | B35: 217.9071521 | C35: 4.119197005 | D35: 58.95357604 | E35: 54.47678802 | F35: 78.95357604 | G35: 54.47678802
A36: 64.32390696 | B36: 265.2956278 | C36: 6.95597674 | D36: 82.64781392 | E36: 66.32390696 | F36: 103.3097674 | G36: 66.32390696
A37: 51.76952406 | B37: 215.0780962 | C37: 3.942381016 | D37: 57.53904812 | E37: 53.76952406 | F37: 77.53904812 | G37: 53.76952406
A38: 49.06746559 | B38: 205.9857257 | C38: 3.374107854 | D38: 52.99286283 | E38: 51.49643142 | F38: 72.99286283 | G38: 51.49643142
A39: 58.70608248 | B39: 242.8243299 | C39: 5.601351662 | D39: 71.41216496 | E39: 60.70608248 | F39: 91.41216496 | G39: 60.70608248
A40: 64.67127204 | B40: 266.6850882 | C40: 7.04281801 | D40: 83.34254408 | E40: 66.67127204 | F40: 104.1781801 | G40: 66.67127204
A41: 69.29355535 | B41: 285.1742214 | C41: 8.176345634 | D41: 92.58711071 | E41: 71.29355535 | F41: 115.7338884 | G41: 71.29355535
A42: 55.45535408 | B42: 229.8214163 | C42: 4.863838521 | D42: 64.91070817 | E42: 57.45535408 | F42: 84.91070817 | G42: 57.45535408
A43: 55.65410421 | B43: 230.6164168 | C43: 4.913526052 | D43: 65.30820842 | E43: 57.65410421 | F43: 85.30820842 | G43: 57.65410421
A44: 58.13400442 | B44: 240.5360177 | C44: 5.474223204 | D44: 70.26800883 | E44: 60.13400442 | F44: 90.26800883 | G44: 60.13400442
A45: 55.38820877 | B45: 229.5528351 | C45: 4.847052193 | D45: 64.77641754 | E45: 57.38820877 | F45: 84.77641754 | G45: 57.38820877
A46: 52.34786902 | B46: 217.3914761 | C46: 4.086967255 | D46: 58.69573804 | E46: 54.34786902 | F46: 78.69573804 | G46: 54.34786902
A47: 78.99381483 | B47: 323.9752593 | C47: 9.239752593 | D47: 107.9917531 | E47: 80.99381483 | F47: 139.9845371 | G47: 80.99381483
A48: 89.18020637 | B48: 364.7208255 | C48: 9.647208255 | D48: 121.5736085 | E48: 91.18020637 | F48: 165.4505159 | G48: 91.18020637
A49: 61.30684425 | B49: 253.227377 | C49: 6.201711063 | D49: 76.6136885 | E49: 63.30684425 | F49: 96.6136885 | G49: 63.30684425
A50: 93.50167869 | B50: 382.0067148 | C50: 9.820067147 | D50: 127.3355716 | E50: 95.50167869 | F50: 176.2541967 | G50: 95.50167869
A51: 65.79841802 | B51: 271.1936721 | C51: 7.324604505 | D51: 85.59683604 | E51: 67.79841802 | F51: 106.9960451 | G51: 67.79841802
A52: 72.23093896 | B52: 296.9237558 | C52: 8.829097546 | D52: 98.46187792 | E52: 74.23093896 | F52: 123.0773474 | G52: 74.23093896
A53: 71.68840483 | B53: 294.7536193 | C53: 8.708534407 | D53: 97.37680967 | E53: 73.68840483 | F53: 121.7210121 | G53: 73.68840483
A54: 60.15194487 | B54: 248.6077795 | C54: 5.922654417 | D54: 74.30388975 | E54: 62.15194487 | F54: 94.30388975 | G54: 62.15194487
A55: 56.85913875 | B55: 235.436555 | C55: 5.190919722 | D55: 67.7182775 | E55: 58.85913875 | F55: 87.7182775 | G55: 58.85913875
A56: 62.05081431 | B56: 256.2032572 | C56: 6.387703578 | D56: 78.10162862 | E56: 64.05081431 | F56: 98.10162862 | G56: 64.05081431
A57: 66.01059721 | B57: 272.0423888 | C57: 7.377649302 | D57: 86.02119442 | E57: 68.01059721 | F57: 107.526493 | G57: 68.01059721
A58: 87.37713092 | B58: 357.5085237 | C58: 9.575085237 | D58: 119.1695079 | E58: 89.37713092 | F58: 160.9428273 | G58: 89.37713092
A59: 73.19156456 | B59: 300.7662582 | C59: 9.007662583 | D59: 100.2554194 | E59: 75.19156456 | F59: 125.4789114 | G59: 75.19156456
A60: 72.06620913 | B60: 296.2648365 | C60: 8.792490917 | D60: 98.13241825 | E60: 74.06620913 | F60: 122.6655228 | G60: 74.06620913
A61: 58.1375855 | B61: 240.550342 | C61: 5.475019 | D61: 70.275171 | E61: 60.1375855 | F61: 90.275171 | G61: 60.1375855
A62: 58.40348094 | B62: 241.6139238 | C62: 5.534106875 | D62: 70.80696188 | E62: 60.40348094 | F62: 90.80696188 | G62: 60.40348094
A63: 45.5328037 | B63: 191.75428 | C63: 2.951495765 | D63: 49.175428 | E63: 49.175428 | F63: 69.175428 | G63: 49.175428
A64: 58.65057569 | B64: 242.6023028 | C64: 5.589016819 | D64: 71.30115138 | E64: 60.65057569 | F64: 91.30115138 | G64: 60.65057569
A65: 55.6451515 | B65: 230.580606 | C65: 4.911287875 | D65: 65.290303 | E65: 57.6451515 | F65: 85.290303 | G65: 57.6451515
A66: 61.811777 | B66: 255.247108 | C66: 6.32794425 | D66: 77.623554 | E66: 63.811777 | F66: 97.623554 | G66: 63.811777
A67: 67.79666252 | B67: 279.1866501 | C67: 7.82416563 | D67: 89.59332504 | E67: 69.79666252 | F67: 111.9916563 | G67: 69.79666252
A68: 57.93346375 | B68: 239.733855 | C68: 5.429658611 | D68: 69.8669275 | E68: 59.93346375 | F68: 89.8669275 | G68: 59.93346375
A69: 39.59417384 | B69: 127.6170775 | C69: 2.574218103 | D69: 42.76170775 | E69: 42.76170775 | F69: 62.76170775 | G69: 42.76170775
A70: 53.98352883 | B70: 223.9341153 | C70: 4.495882208 | D70: 61.96705767 | E70: 55.98352883 | F70: 81.96705767 | G70: 55.98352883
A71: 53.85013348 | B71: 223.4005339 | C71: 4.46253337 | D71: 61.70026696 | E71: 55.85013348 | F71: 81.70026696 | G71: 55.85013348
A72: 72.70990885 | B72: 298.8396354 | C72: 8.935535301 | D72: 99.41981771 | E72: 74.70990885 | F72: 124.2747721 | G72: 74.70990885
A73: 57.2351525 | B73: 236.94061 | C73: 5.274478333 | D73: 68.470305 | E73: 59.2351525 | F73: 88.470305 | G73: 59.2351525
A74: 66.91303021 | B74: 275.6521208 | C74: 7.603257552 | D74: 87.82606042 | E74: 68.91303021 | F74: 109.7825755 | G74: 68.91303021
A75: 81.96879981 | B75: 335.8751993 | C75: 9.358751993 | D75: 111.9583998 | E75: 83.96879981 | F75: 147.4219995 | G75: 83.96879981
A76: 69.27027831 | B76: 285.0811133 | C76: 8.171172958 | D76: 92.54055663 | E76: 71.27027831 | F76: 115.6756958 | G76: 71.27027831
A77: 77.50676998 | B77: 318.0270799 | C77: 9.180270799 | D77: 106.0090266 | E77: 79.50676998 | F77: 136.2669249 | G77: 79.50676998
A78: 60.2155091 | B78: 248.8620364 | C78: 5.936779801 | D78: 74.43101821 | E78: 62.2155091 | F78: 94.43101821 | G78: 62.2155091
A79: 88.94027379 | B79: 363.7610952 | C79: 9.637610952 | D79: 121.2536984 | E79: 90.94027379 | F79: 164.8506845 | G79: 90.94027379
A80: 87.9760671 | B80: 359.9042684 | C80: 9.599042684 | D80: 119.9680895 | E80: 89.9760671 | F80: 162.4401678 | G80: 89.9760671
A81: 57.94868335 | B81: 239.7947334 | C81: 5.433040745 | D81: 69.89736671 | E81: 59.94868335 | F81: 89.89736671 | G81: 59.94868335
A82: 76.86396552 | B82: 315.4558621 | C82: 9.154558621 | D82: 105.151954 | E82: 78.86396552 | F82: 134.6599138 | G82: 78.86396552
A83: 157.3389655 | B83: 411.3026601 | C83: 10 | D83: 218.6779309 | E83: 159.3389655 | F83: 318.6779309 | G83: 159.3389655
A84: 70.80477252 | B84: 291.2190901 | C84: 8.512171671 | D84: 95.60954504 | E84: 72.80477252 | F84: 119.5119313 | G84: 72.80477252
A85: 50.29053665 | B85: 209.1621466 | C85: 3.572634161 | D85: 54.58107329 | E85: 52.29053665 | F85: 74.58107329 | G85: 52.29053665
A86: 47.52395235 | B86: 202.6517371 | C86: 3.165733568 | D86: 51.32586854 | E86: 50.66293427 | F86: 71.32586854 | G86: 50.66293427
A87: 54.03187346 | B87: 224.1274938 | C87: 4.507968365 | D87: 62.06374692 | E87: 56.03187346 | F87: 82.06374692 | G87: 56.03187346
A88: 85.5480926 | B88: 350.1923704 | C88: 9.501923704 | D88: 116.7307901 | E88: 87.5480926 | F88: 156.3702315 | G88: 87.5480926
A89: 83.91869969 | B89: 343.6747987 | C89: 9.436747987 | D89: 114.5582662 | E89: 85.91869969 | F89: 152.2967492 | G89: 85.91869969
A90: 71.74122581 | B90: 294.9649033 | C90: 8.720272403 | D90: 97.48245163 | E90: 73.74122581 | F90: 121.8530645 | G90: 73.74122581
A91: 53.34341019 | B91: 221.3736407 | C91: 4.335852547 | D91: 60.68682037 | E91: 55.34341019 | F91: 80.68682037 | G91: 55.34341019
A92: 58.28213105 | B92: 241.1285242 | C92: 5.507140232 | D92: 70.56426209 | E92: 60.28213105 | F92: 90.56426209 | G92: 60.28213105
A93: 50.94229381 | B93: 211.7691752 | C93: 3.735573453 | D93: 55.88458762 | E93: 52.94229381 | F93: 75.88458762 | G93: 52.94229381
A94: 30.83378295 | B94: 83.25121396 | C94: 2.017675623 | D94: 33.30048558 | E94: 33.30048558 | F94: 53.30048558 | G94: 33.30048558
A95: 60.75625269 | B95: 251.0250107 | C95: 6.064063172 | D95: 75.51250537 | E95: 62.75625269 | F95: 95.51250537 | G95: 62.75625269
A96: 92.13101904 | B96: 376.5240762 | C96: 9.765240762 | D96: 125.5080254 | E96: 94.13101904 | F96: 172.8275476 | G96: 94.13101904
A97: 70.06438354 | B97: 288.2575342 | C97: 8.347640787 | D97: 94.12876708 | E97: 72.06438354 | F97: 117.6609589 | G97: 72.06438354
A98: 93.28860423 | B98: 381.1544169 | C98: 9.811544169 | D98: 127.0514723 | E98: 95.28860423 | F98: 175.7215106 | G98: 95.28860423
A99: 65.29796163 | B99: 269.1918465 | C99: 7.199490406 | D99: 84.59592325 | E99: 67.29796163 | F99: 105.7449041 | G99: 67.29796163
A100: 62.20121981 | B100: 256.8048792 | C100: 6.425304953 | D100: 78.40243962 | E100: 64.20121981 | F100: 98.40243962 | G100: 64.20121981
A101: 75.45839031 | B101: 309.8335613 | C101: 9.098335613 | D101: 103.2778538 | E101: 77.45839031 | F101: 131.1459758 | G101: 77.45839031
A102: 72.469081 | B102: 297.876324 | C102: 8.882018 | D102: 98.938162 | E102: 74.469081 | F102: 123.6727025 | G102: 74.469081
A103: 61.79208104 | B103: 255.1683242 | C103: 6.32302026 | D103: 77.58416208 | E103: 63.79208104 | F103: 97.58416208 | G103: 63.79208104
A104: 87.81223254 | B104: 359.2489302 | C104: 9.592489302 | D104: 119.7496434 | E104: 89.81223254 | F104: 162.0305814 | G104: 89.81223254
A105: 96.20181552 | B105: 392.8072621 | C105: 9.928072621 | D105: 130.935754 | E105: 98.20181552 | F105: 183.0045388 | G105: 98.20181552
A106: 86.693144 | B106: 354.772576 | C106: 9.54772576 | D106: 118.2575253 | E106: 88.693144 | F106: 159.23286 | G106: 88.693144
A107: 90.08890627 | B107: 368.3556251 | C107: 9.683556251 | D107: 122.7852084 | E107: 92.08890627 | F107: 167.7222657 | G107: 92.08890627
A108: 75.33036658 | B108: 309.3214663 | C108: 9.093214663 | D108: 103.1071554 | E108: 77.33036658 | F108: 130.8259165 | G108: 77.33036658
A109: 81.47461031 | B109: 333.8984413 | C109: 9.338984413 | D109: 111.2994804 | E109: 83.47461031 | F109: 146.1865258 | G109: 83.47461031
A110: 81.7020091 | B110: 334.8080364 | C110: 9.348080364 | D110: 111.6026788 | E110: 83.7020091 | F110: 146.7550228 | G110: 83.7020091
A111: 76.34828952 | B111: 313.3931581 | C111: 9.133931581 | D111: 104.464386 | E111: 78.34828952 | F111: 133.3707238 | G111: 78.34828952
A112: 80.34119744 | B112: 329.3647897 | C112: 9.293647897 | D112: 109.7882632 | E112: 82.34119744 | F112: 143.3529936 | G112: 82.34119744
A113: 99.66919946 | B113: 400.3179428 | C113: 10 | D113: 135.5589326 | E113: 101.6691995 | F113: 191.6729986 | G113: 101.6691995
A114: 90.37270713 | B114: 369.4908285 | C114: 9.694908285 | D114: 123.1636095 | E114: 92.37270713 | F114: 168.4317678 | G114: 92.37270713
A115: 86.37532285 | B115: 353.5012914 | C115: 9.535012914 | D115: 117.8337638 | E115: 88.37532285 | F115: 158.4383071 | G115: 88.37532285
A116: 77.07166835 | B116: 316.2866734 | C116: 9.162866734 | D116: 105.4288911 | E116: 79.07166835 | F116: 135.1791709 | G116: 79.07166835
A117: 74.29811931 | B117: 305.1924773 | C117: 9.051924773 | D117: 101.7308258 | E117: 76.29811931 | F117: 128.2452983 | G117: 76.29811931
A118: 76.39842469 | B118: 313.5936987 | C118: 9.135936987 | D118: 104.5312329 | E118: 78.39842469 | F118: 133.4960617 | G118: 78.39842469
A119: 68.24161212 | B119: 280.9664485 | C119: 7.935403031 | D119: 90.48322425 | E119: 70.24161212 | F119: 113.1040303 | G119: 70.24161212
A120: 63.58978487 | B120: 262.3591395 | C120: 6.772446219 | D120: 81.17956975 | E120: 65.58978487 | F120: 101.4744622 | G120: 65.58978487
A121: 78.2337299 | B121: 320.9349196 | C121: 9.209349196 | D121: 106.9783065 | E121: 80.2337299 | F121: 138.0843247 | G121: 80.2337299
A122: 77.40112802 | B122: 317.6045121 | C122: 9.176045121 | D122: 105.8681707 | E122: 79.40112802 | F122: 136.0028201 | G122: 79.40112802
A123: 79.77986262 | B123: 327.1194505 | C123: 9.271194505 | D123: 109.0398168 | E123: 81.77986262 | F123: 141.9496566 | G123: 81.77986262
A124: 81.19797162 | B124: 332.7918865 | C124: 9.327918865 | D124: 110.9306288 | E124: 83.19797162 | F124: 145.4949291 | G124: 83.19797162
A125: 86.74865079 | B125: 354.9946032 | C125: 9.549946032 | D125: 118.3315344 | E125: 88.74865079 | F125: 159.371627 | G125: 88.74865079
A126: 79.99025127 | B126: 327.9610051 | C126: 9.279610051 | D126: 109.320335 | E126: 81.99025127 | F126: 142.4756282 | G126: 81.99025127
A127: 80.08335944 | B127: 328.3334378 | C127: 9.283334378 | D127: 109.4444793 | E127: 82.08335944 | F127: 142.7083986 | G127: 82.08335944
A128: 73.55325398 | B128: 302.2130159 | C128: 9.022130159 | D128: 100.737672 | E128: 75.55325398 | F128: 126.3831349 | G128: 75.55325398
A129: 74.90511294 | B129: 307.6204517 | C129: 9.076204517 | D129: 102.5401506 | E129: 76.90511294 | F129: 129.7627823 | G129: 76.90511294
A130: 76.69207352 | B130: 314.7682941 | C130: 9.147682941 | D130: 104.9227647 | E130: 78.69207352 | F130: 134.2301838 | G130: 78.69207352
A131: 82.40748252 | B131: 337.6299301 | C131: 9.376299301 | D131: 112.54331 | E131: 84.40748252 | F131: 148.5187063 | G131: 84.40748252
A132: 86.15866731 | B132: 352.6346692 | C132: 9.526346692 | D132: 117.5448897 | E132: 88.15866731 | F132: 157.8966683 | G132: 88.15866731
A133: 75.94004602 | B133: 311.7601841 | C133: 9.117601841 | D133: 103.9200614 | E133: 77.94004602 | F133: 132.3501151 | G133: 77.94004602
A134: 77.8192195 | B134: 319.276878 | C134: 9.19276878 | D134: 106.425626 | E134: 79.8192195 | F134: 137.0480488 | G134: 79.8192195
A135: 78.75477752 | B135: 323.0191101 | C135: 9.230191101 | D135: 107.6730367 | E135: 80.75477752 | F135: 139.3869438 | G135: 80.75477752
A136: 80.5757584 | B136: 330.3030336 | C136: 9.303030336 | D136: 110.1010112 | E136: 82.5757584 | F136: 143.939396 | G136: 82.5757584
A137: 98.2466141 | B137: 400.0469741 | C137: 10 | D137: 133.6621521 | E137: 100.2466141 | F137: 188.1165353 | G137: 100.2466141
A138: 83.4424156 | B138: 341.7696624 | C138: 9.417696624 | D138: 113.9232208 | E138: 85.4424156 | F138: 151.106039 | G138: 85.4424156
A139: 89.92954806 | B139: 367.7181923 | C139: 9.677181923 | D139: 122.5727308 | E139: 91.92954806 | F139: 167.3238702 | G139: 91.92954806
A140: 85.55167369 | B140: 350.2066947 | C140: 9.502066947 | D140: 116.7355649 | E140: 87.55167369 | F140: 156.3791842 | G140: 87.55167369
A141: 87.7612021 | B141: 359.0448084 | C141: 9.590448084 | D141: 119.6816028 | E141: 89.7612021 | F141: 161.9030053 | G141: 89.7612021
A142: 84.62775419 | B142: 346.5110168 | C142: 9.465110168 | D142: 115.5036723 | E142: 86.62775419 | F142: 154.0693855 | G142: 86.62775419
A143: 87.05483342 | B143: 356.2193337 | C143: 9.562193337 | D143: 118.7397779 | E143: 89.05483342 | F143: 160.1370835 | G143: 89.05483342
A144: 93.8759019 | B144: 383.5036076 | C144: 9.835036076 | D144: 127.8345359 | E144: 95.8759019 | F144: 177.1897547 | G144: 95.8759019
A145: 105.2171928 | B145: 401.3747034 | C145: 10 | D145: 142.9562571 | E145: 107.2171928 | F145: 205.542982 | G145: 107.2171928
A146: 96.96548154 | B146: 395.8619262 | C146: 9.958619262 | D146: 131.9539754 | E146: 98.96548154 | F146: 184.9137039 | G146: 98.96548154
A147: 99.02370919 | B147: 400.1949922 | C147: 10 | D147: 134.6982789 | E147: 101.0237092 | F147: 190.059273 | G147: 101.0237092
A148: 104.4445741 | B148: 401.2275379 | C148: 10 | D148: 141.9260988 | E148: 106.4445741 | F148: 203.6114352 | G148: 106.4445741
A149: 110.8690376 | B149: 402.4512453 | C149: 10 | D149: 150.4920501 | E149: 112.8690376 | F149: 219.672594 | G149: 112.8690376
A150: 131.1290165 | B150: 406.3102889 | C150: 10 | D150: 177.5053554 | E150: 133.1290165 | F150: 266.2580331 | G150: 133.1290165
A151: 132.1845409 | B151: 406.5113411 | C151: 10 | D151: 178.9127211 | E151: 134.1845409 | F151: 268.3690817 | G151: 134.1845409
A152: 128.1978998 | B152: 405.7519809 | C152: 10 | D152: 173.5971998 | E152: 130.1978998 | F152: 260.3957997 | G152: 130.1978998
A153: 135.4281071 | B153: 407.1291633 | C153: 10 | D153: 183.2374761 | E153: 137.4281071 | F153: 274.8562142 | G153: 137.4281071
A154: 126.0680505 | B154: 405.3462953 | C154: 10 | D154: 170.7574007 | E154: 128.0680505 | F154: 256.136101 | G154: 128.0680505
A155: 112.2567074 | B155: 402.7155633 | C155: 10 | D155: 152.3422765 | E155: 114.2567074 | F155: 223.1417684 | G155: 114.2567074
A156: 91.0056636 | B156: 372.0226544 | C156: 9.720226544 | D156: 124.0075515 | E156: 93.0056636 | F156: 170.014159 | G156: 93.0056636
A157: 90.51863627 | B157: 370.0745451 | C157: 9.700745451 | D157: 123.3581817 | E157: 92.51863627 | F157: 168.7965907 | G157: 92.51863627
A158: 98.27257696 | B158: 400.0519194 | C158: 10 | D158: 133.6967693 | E158: 100.272577 | F158: 188.1814424 | G158: 100.272577
A159: 103.1911949 | B159: 400.988799 | C159: 10 | D159: 140.2549266 | E159: 105.1911949 | F159: 200.4779873 | G159: 105.1911949
A160: 89.63142287 | B160: 366.5256915 | C160: 9.665256915 | D160: 122.1752305 | E160: 91.63142287 | F160: 166.5785572 | G160: 91.63142287
A161: 92.78277621 | B161: 379.1311048 | C161: 9.791311048 | D161: 126.3770349 | E161: 94.78277621 | F161: 174.4569405 | G161: 94.78277621
A162: 91.01909267 | B162: 372.0763707 | C162: 9.720763707 | D162: 124.0254569 | E162: 93.01909267 | F162: 170.0477317 | G162: 93.01909267
A163: 85.17476467 | B163: 348.6990587 | C163: 9.486990587 | D163: 116.2330196 | E163: 87.17476467 | F163: 155.4369117 | G163: 87.17476467
A164: 81.04577558 | B164: 332.1831023 | C164: 9.321831023 | D164: 110.7277008 | E164: 83.04577558 | F164: 145.114439 | G164: 83.04577558
A165: 88.25986796 | B165: 361.0394718 | C165: 9.610394718 | D165: 120.3464906 | E165: 90.25986796 | F165: 163.1496699 | G165: 90.25986796
A166: 96.18122429 | B166: 392.7248972 | C166: 9.927248972 | D166: 130.9082991 | E166: 98.18122429 | F166: 182.9530607 | G166: 98.18122429
A167: 88.57142221 | B167: 362.2856888 | C167: 9.622856888 | D167: 120.7618963 | E167: 90.57142221 | F167: 163.9285555 | G167: 90.57142221
A168: 85.43528848 | B168: 349.7411539 | C168: 9.497411539 | D168: 116.5803846 | E168: 87.43528848 | F168: 156.0882212 | G168: 87.43528848
A169: 87.19807675 | B169: 356.792307 | C169: 9.56792307 | D169: 118.930769 | E169: 89.19807675 | F169: 160.4951919 | G169: 89.19807675
A170: 88.87670956 | B170: 363.5068382 | C170: 9.635068383 | D170: 121.1689461 | E170: 90.87670956 | F170: 164.6917739 | G170: 90.87670956
A171: 103.5519891 | B171: 401.0575217 | C171: 10 | D171: 140.7359854 | E171: 105.5519891 | F171: 201.3799727 | G171: 105.5519891
A172: 99.36659792 | B172: 400.2603044 | C172: 10 | D172: 135.1554639 | E172: 101.3665979 | F172: 190.9164948 | G172: 101.3665979
A173: 99.44448648 | B173: 400.2751403 | C173: 10 | D173: 135.2593153 | E173: 101.4444865 | F173: 191.1112162 | G173: 101.4444865
A174: 108.2485799 | B174: 401.9521104 | C174: 10 | D174: 146.9981065 | E174: 110.2485799 | F174: 213.1214496 | G174: 110.2485799
A175: 156.9978673 | B175: 411.237689 | C175: 10 | D175: 217.9957345 | E175: 158.9978673 | F175: 317.9957345 | G175: 158.9978673
A176: 350.3662346 | B176: 430.4123439 | C176: 10 | D176: 412.2905035 | E176: 361.662014 | F176: 434.6648056 | G176: 361.662014
A177: 211.9466457 | B177: 420.2250145 | C177: 10 | D177: 315.453315 | E177: 217.6609314 | F177: 381.181326 | G177: 217.6609314
A178: 242.7286149 | B178: 422.2771458 | C178: 10 | D178: 342.387538 | E178: 248.4429006 | F178: 391.9550152 | G178: 248.4429006
A179: 155.3272919 | B179: 410.9194842 | C179: 10 | D179: 214.6545838 | E179: 157.3272919 | F179: 314.6545838 | G179: 157.3272919
A180: 126.2077128 | B180: 405.3728977 | C180: 10 | D180: 170.943617 | E180: 128.2077128 | F180: 256.4154255 | G180: 128.2077128
A181: 120.0079623 | B181: 404.1919928 | C181: 10 | D181: 162.677283 | E181: 122.0079623 | F181: 242.5199056 | G181: 122.0079623
A182: 109.6729557 | B182: 402.2234201 | C182: 10 | D182: 148.8972743 | E182: 111.6729557 | F182: 216.6823894 | G182: 111.6729557
A183: 106.1858759 | B183: 401.5592144 | C183: 10 | D183: 144.2478345 | E183: 108.1858759 | F183: 207.9646896 | G183: 108.1858759
A184: 100.2699262 | B184: 400.4323669 | C184: 10 | D184: 136.3599016 | E184: 102.2699262 | F184: 193.1748155 | G184: 102.2699262
A185: 92.35125567 | B185: 377.4050227 | C185: 9.774050227 | D185: 125.8016742 | E185: 94.35125567 | F185: 173.3781392 | G185: 94.35125567
A186: 93.00480338 | B186: 380.0192135 | C186: 9.800192135 | D186: 126.6730712 | E186: 95.00480338 | F186: 175.0120084 | G186: 95.00480338
A187: 99.53848992 | B187: 400.2930457 | C187: 10 | D187: 135.3846532 | E187: 101.5384899 | F187: 191.3462248 | G187: 101.5384899
A188: 96.33342033 | B188: 393.3336813 | C188: 9.933336813 | D188: 131.1112271 | E188: 98.33342033 | F188: 183.3335508 | G188: 98.33342033
A189: 94.55272665 | B189: 386.2109066 | C189: 9.862109066 | D189: 128.7369689 | E189: 96.55272665 | F189: 178.8818166 | G189: 96.55272665
A190: 88.36192883 | B190: 361.4477153 | C190: 9.614477153 | D190: 120.4825718 | E190: 90.36192883 | F190: 163.4048221 | G190: 90.36192883
A191: 89.42730112 | B191: 365.7092045 | C191: 9.657092045 | D191: 121.9030682 | E191: 91.42730112 | F191: 166.0682528 | G191: 91.42730112
A192: 86.38069448 | B192: 353.5227779 | C192: 9.535227779 | D192: 117.840926 | E192: 88.38069448 | F192: 158.4517362 | G192: 88.38069448
A193: 85.13537275 | B193: 348.541491 | C193: 9.48541491 | D193: 116.180497 | E193: 87.13537275 | F193: 155.3384319 | G193: 87.13537275
A194: 82.93658758 | B194: 339.7463503 | C194: 9.397463503 | D194: 113.2487834 | E194: 84.93658758 | F194: 149.841469 | G194: 84.93658758
A195: 82.46836094 | B195: 337.8734438 | C195: 9.378734438 | D195: 112.6244813 | E195: 84.46836094 | F195: 148.6709023 | G195: 84.46836094
A196: 79.23195688 | B196: 324.9278275 | C196: 9.249278275 | D196: 108.3092758 | E196: 81.23195688 | F196: 140.5798922 | G196: 81.23195688
A197: 79.43607863 | B197: 325.7443145 | C197: 9.257443145 | D197: 108.5814382 | E197: 81.43607863 | F197: 141.0901966 | G197: 81.43607863
A198: 79.86401808 | B198: 327.4560723 | C198: 9.274560723 | D198: 109.1520241 | E198: 81.86401808 | F198: 142.1600452 | G198: 81.86401808
A199: 73.03578744 | B199: 300.1431497 | C199: 9.001431497 | D199: 100.0477166 | E199: 75.03578744 | F199: 125.0894686 | G199: 75.03578744
A200: 72.08590508 | B200: 296.3436203 | C200: 8.796867796 | D200: 98.17181017 | E200: 74.08590508 | F200: 122.7147627 | G200: 74.08590508
A201: 76.92752975 | B201: 315.710119 | C201: 9.15710119 | D201: 105.2367063 | E201: 78.92752975 | F201: 134.8188244 | G201: 78.92752975
A202: 92.8875229 | B202: 379.5500916 | C202: 9.795500916 | D202: 126.5166972 | E202: 94.8875229 | F202: 174.7188072 | G202: 94.8875229
... 166 more rows

Sheet aqi_tally
A1: AQI TALLY by COUNTRY METHODS | G1: =INDEX(Country!H9:H16,Country!G7) -> PM10 | H1: =Calculator!E13 -> 364
I2: < -- no.of.points
B4: USA | C4: EU | D4: UK | E4: India | F4: China | G4: S.Korea | H4: Singapore
A5: no.of.bins --> | B5: =aqi_breaks_usa!B6 -> 6 | C5: =aqi_breaks_eu!B6 -> 6 | D5: =aqi_breaks_uk!B6 -> 10 | E5: =aqi_breaks_india!B6 -> 6 | F5: =aqi_breaks_china!B6 -> 6 | G5: =aqi_breaks_skorea!B6 -> 6 | H5: =aqi_breaks_singapore!B6 -> 6
A7: Bin1 | B7: 37 | C7: 2 | D7: 1 | E7: 31 | F7: 31 | G7: 8 | H7: 31
A8: Bin2 | B8: 291 | C8: 16 | D8: 8 | E8: 147 | F8: 290 | G8: 104 | H8: 290
A9: Bin3 | B9: 27 | C9: 13 | D9: 22 | E9: 177 | F9: 37 | G9: 142 | H9: 37
A10: Bin4 | B10: 3 | C10: 147 | D10: 15 | E10: 3 | F10: 3 | G10: 92 | H10: 3
A11: Bin5 | B11: 4 | C11: 143 | D11: 20 | E11: 4 | F11: 3 | G11: 12 | H11: 3
A12: Bin6 | B12: 2 | C12: 43 | D12: 27 | E12: 2 | F12: 0 | G12: 6 | H12: 0
A13: Bin7 | D13: 27
A14: Bin8 | D14: 31
A15: Bin9 | D15: 27
A16: Bin10 | D16: 186
B18: % points in each bin
B19: USA | C19: EU | D19: UK | E19: India | F19: China | G19: S.Korea | H19: Singapore
A20: Bin1 | B20: =B7/$H$1 -> 0.1016483516 | C20: =C7/$H$1 -> 0.005494505495 | D20: =D7/$H$1 -> 0.002747252747 | E20: =E7/$H$1 -> 0.08516483516 | F20: 0.08516483516 | G20: 0.02197802198 | H20: 0.08516483516
A21: Bin2 | B21: =B8/$H$1 -> 0.7994505495 | C21: 0.04395604396 | D21: =D8/$H$1 -> 0.02197802198 | E21: =E8/$H$1 -> 0.4038461538 | F21: 0.7967032967 | G21: 0.2857142857 | H21: 0.7967032967
A22: Bin3 | B22: 0.07417582418 | C22: 0.03571428571 | D22: =D9/$H$1 -> 0.06043956044 | E22: =E9/$H$1 -> 0.4862637363 | F22: 0.1016483516 | G22: 0.3901098901 | H22: 0.1016483516
A23: Bin4 | B23: 0.008241758242 | C23: 0.4038461538 | D23: =D10/$H$1 -> 0.04120879121 | E23: =E10/$H$1 -> 0.008241758242 | F23: 0.008241758242 | G23: 0.2527472527 | H23: 0.008241758242
A24: Bin5 | B24: 0.01098901099 | C24: 0.3928571429 | D24: =D11/$H$1 -> 0.05494505495 | E24: =E11/$H$1 -> 0.01098901099 | F24: 0.008241758242 | G24: 0.03296703297 | H24: 0.008241758242
A25: Bin6 | B25: 0.005494505495 | C25: 0.1181318681 | D25: =D12/$H$1 -> 0.07417582418 | E25: =E12/$H$1 -> 0.005494505495 | F25: 0 | G25: 0.01648351648 | H25: 0
A26: Bin7 | D26: 0.07417582418
A27: Bin8 | D27: 0.08516483516
A28: Bin9 | D28: 0.07417582418
A29: Bin10 | D29: 0.510989011

Sheet aqi_breaks_usa
B1: 1 | C1: USA AQI Break Points Information
B5: Number of bins | D5: Number of polls | G5: Break Points
B6: =MAX(B11:B20) -> 6 | D6: =MAX(G6:X6) -> 18 | G6: 1 | H6: 2 | I6: 3 | J6: 4 | K6: 5 | L6: 6 | M6: 7 | N6: 8 | O6: 9 | P6: 10 | Q6: 11 | R6: 12 | S6: 13 | T6: 14 | U6: 15 | V6: 16 | W6: 17 | X6: 18
G7: PM2.5 | H7: PM2.5 | I7: PM2.5 | J7: PM10 | K7: PM10 | L7: PM10 | M7: SO2 | N7: SO2 | O7: SO2 | P7: NO2 | Q7: NO2 | R7: NO2 | S7: CO | T7: CO | U7: CO | V7: Ozone | W7: Ozone | X7: Ozone
G8: 24hr | H8: 8hr | I8: 1hr | J8: 24hr | K8: 8hr | L8: 1hr | M8: 24hr | N8: 8hr | O8: 1hr | P8: 24hr | Q8: 8hr | R8: 1hr | S8: 24hr | T8: 8hr | U8: 1hr | V8: 24hr | W8: 8hr | X8: 1hr
D9: AQI | G9: ug/m3 | H9: ug/m3 | I9: ug/m3 | J9: ug/m3 | K9: ug/m3 | L9: ug/m3 | M9: ug/m3 | N9: ug/m3 | O9: ug/m3 | P9: ug/m3 | Q9: ug/m3 | R9: ug/m3 | S9: ug/m3 | T9: ug/m3 | U9: ug/m3 | V9: ug/m3 | W9: ug/m3 | X9: ug/m3
D10: Low | E10: High | F10: col.code | G10: 0 | J10: 0 | M10: 0 | P10: 0 | T10: 0 | W10: 0 | X10: 0
B11: 1 | C11: Good | D11: 0 | E11: 50 | F11: 43 | G11: 12 | J11: 54 | M11: =M27*Unit_Conversion!$K$11 -> 94.73534899 | P11: =P27*Unit_Conversion!$K$12 -> 85.17722895 | T11: =T27*Unit_Conversion!$G$13 -> 5210.444194 | W11: =W27*Unit_Conversion!$G$14 -> 109.6223324 | X11: =X27*Unit_Conversion!$G$14 -> 0
B12: 2 | C12: Moderate | D12: 50 | E12: 100 | F12: 27 | G12: 35.4 | J12: 154 | M12: =M28*Unit_Conversion!$K$11 -> 203.0043193 | P12: =P28*Unit_Conversion!$K$12 -> 160.7117527 | T12: =T28*Unit_Conversion!$G$13 -> 11131.40351 | W12: =W28*Unit_Conversion!$G$14 -> 142.1030235 | X12: =X28*Unit_Conversion!$G$14 -> 253.7553991
B13: 3 | C13: Unhealthy for Sensitive Groups | D13: 100 | E13: 150 | F13: 45 | G13: 55.4 | J13: 254 | M13: =M29*Unit_Conversion!$K$11 -> 500.7439875 | P13: =P29*Unit_Conversion!$K$12 -> 578.5623099 | T13: =T29*Unit_Conversion!$G$13 -> 14683.97909 | W13: =W29*Unit_Conversion!$G$14 -> 172.5536714 | X13: =X29*Unit_Conversion!$G$14 -> 332.9270836
B14: 4 | C14: Unhealthy | D14: 150 | E14: 200 | F14: 3 | G14: 150.4 | J14: 354 | M14: =M30*Unit_Conversion!$K$11 -> 822.844174 | P14: =P30*Unit_Conversion!$K$12 -> 1043.019275 | T14: =T30*Unit_Conversion!$G$13 -> 18236.55468 | W14: =W30*Unit_Conversion!$G$14 -> 213.1545352 | X14: =X30*Unit_Conversion!$G$14 -> 414.1288113
B15: 5 | C15: Very Unhealthy | D15: 200 | E15: 300 | F15: 13 | G15: 250.4 | J15: 424 | M15: =M31*Unit_Conversion!$K$11 -> 1634.861451 | P15: =P31*Unit_Conversion!$K$12 -> 2007.289792 | T15: =T31*Unit_Conversion!$G$13 -> 35999.43261 | W15: =W31*Unit_Conversion!$G$14 -> 406.0086385 | X15: =X31*Unit_Conversion!$G$14 -> 820.1374498
B16: 6 | C16: Hazardous | D16: 300 | E16: 500 | F16: 9 | G16: 500.4 | J16: 604 | M16: =M32*Unit_Conversion!$K$11 -> 2717.551154 | P16: =P32*Unit_Conversion!$K$12 -> 3292.983814 | T16: =T32*Unit_Conversion!$G$13 -> 59683.26986 | W16: =W32*Unit_Conversion!$G$14 -> 0 | X16: =X32*Unit_Conversion!$G$14 -> 1226.146088
G21: Break Points
G22: 1 | H22: 2 | I22: 3 | J22: 4 | K22: 5 | L22: 6 | M22: 7 | N22: 8 | O22: 9 | P22: 10 | Q22: 11 | R22: 12 | S22: 13 | T22: 14 | U22: 15 | V22: 16 | W22: 17 | X22: 18
G23: PM2.5 | H23: PM2.5 | I23: PM2.5 | J23: PM10 | K23: PM10 | L23: PM10 | M23: SO2 | N23: SO2 | O23: SO2 | P23: NO2 | Q23: NO2 | R23: NO2 | S23: CO | T23: CO | U23: CO | V23: Ozone | W23: Ozone | X23: Ozone
G24: 24hr | H24: 8hr | I24: 1hr | J24: 24hr | K24: 8hr | L24: 1hr | M24: 24hr | N24: 8hr | O24: 1hr | P24: 24hr | Q24: 8hr | R24: 1hr | S24: 24hr | T24: 8hr | U24: 1hr | V24: 24hr | W24: 8hr | X24: 1hr
J25: ug/m3 | M25: ppb | P25: ppb | T25: ppm | W25: ppm | X25: ppm
M26: 0 | P26: 0 | T26: 0 | W26: 0 | X26: 0
M27: 35 | P27: 53 | T27: 4.4 | W27: 0.054 | X27: 0
M28: 75 | P28: 100 | T28: 9.4 | W28: 0.07 | X28: 0.125
M29: 185 | P29: 360 | T29: 12.4 | W29: 0.085 | X29: 0.164
M30: 304 | P30: 649 | T30: 15.4 | W30: 0.105 | X30: 0.204
M31: 604 | P31: 1249 | T31: 30.4 | W31: 0.2 | X31: 0.404
M32: 1004 | P32: 2049 | T32: 50.4 | W32: 0 | X32: 0.604

Sheet aqi_breaks_eu
B1: 2 | C1: EU AQI Break Points Information
B5: Number of bins | D5: Number of polls | G5: Break Points
B6: =MAX(B11:B20) -> 6 | D6: =MAX(G6:X6) -> 18 | G6: 1 | H6: 2 | I6: 3 | J6: 4 | K6: 5 | L6: 6 | M6: 7 | N6: 8 | O6: 9 | P6: 10 | Q6: 11 | R6: 12 | S6: 13 | T6: 14 | U6: 15 | V6: 16 | W6: 17 | X6: 18
G7: PM2.5 | H7: PM2.5 | I7: PM2.5 | J7: PM10 | K7: PM10 | L7: PM10 | M7: SO2 | N7: SO2 | O7: SO2 | P7: NO2 | Q7: NO2 | R7: NO2 | S7: CO | T7: CO | U7: CO | V7: Ozone | W7: Ozone | X7: Ozone
G8: 24hr | H8: 8hr | I8: 1hr | J8: 24hr | K8: 8hr | L8: 1hr | M8: 24hr | N8: 8hr | O8: 1hr | P8: 24hr | Q8: 8hr | R8: 1hr | S8: 24hr | T8: 8hr | U8: 1hr | V8: 24hr | W8: 8hr | X8: 1hr
D9: AQI | G9: ug/m3 | H9: ug/m3 | I9: ug/m3 | J9: ug/m3 | K9: ug/m3 | L9: ug/m3 | M9: ug/m3 | N9: ug/m3 | O9: ug/m3 | P9: ug/m3 | Q9: ug/m3 | R9: ug/m3 | S9: ug/m3 | T9: ug/m3 | U9: ug/m3 | V9: ug/m3 | W9: ug/m3 | X9: ug/m3
D10: Low | E10: High | F10: col.code | G10: 0 | J10: 0 | O10: 0 | R10: 0 | X10: 0
B11: 1 | C11: Very Good | D11: 0 | E11: 50 | F11: 10 | G11: 10 | J11: 20 | O11: 100 | R11: 40 | X11: 50
B12: 2 | C12: Good | D12: 50 | E12: 100 | F12: 43 | G12: 20 | J12: 40 | O12: 200 | R12: 90 | X12: 100
B13: 3 | C13: Medium | D13: 100 | E13: 200 | F13: 27 | G13: 25 | J13: 50 | O13: 350 | R13: 120 | X13: 130
B14: 4 | C14: Poor | D14: 200 | E14: 300 | F14: 45 | G14: 50 | J14: 100 | O14: 500 | R14: 230 | X14: 240
B15: 5 | C15: Very Poor | D15: 300 | E15: 400 | F15: 46 | G15: 75 | J15: 150 | O15: 750 | R15: 340 | X15: 380
B16: 6 | C16: Extremely Poor | D16: 400 | E16: 500 | F16: 3 | G16: 800 | J16: 1200 | O16: 1250 | R16: 1000 | X16: 800

Sheet aqi_breaks_uk
B1: 3 | C1: UK AQI Break Points Information
B5: Number of bins | D5: Number of polls | G5: Break Points
B6: =MAX(B11:B20) -> 10 | D6: =MAX(G6:X6) -> 18 | G6: 1 | H6: 2 | I6: 3 | J6: 4 | K6: 5 | L6: 6 | M6: 7 | N6: 8 | O6: 9 | P6: 10 | Q6: 11 | R6: 12 | S6: 13 | T6: 14 | U6: 15 | V6: 16 | W6: 17 | X6: 18
G7: PM2.5 | H7: PM2.5 | I7: PM2.5 | J7: PM10 | K7: PM10 | L7: PM10 | M7: SO2 | N7: SO2 | O7: SO2 | P7: NO2 | Q7: NO2 | R7: NO2 | S7: CO | T7: CO | U7: CO | V7: Ozone | W7: Ozone | X7: Ozone
G8: 24hr | H8: 8hr | I8: 1hr | J8: 24hr | K8: 8hr | L8: 1hr | M8: 24hr | N8: 8hr | O8: 1hr | P8: 24hr | Q8: 8hr | R8: 1hr | S8: 24hr | T8: 8hr | U8: 1hr | V8: 24hr | W8: 8hr | X8: 1hr
D9: AQI | G9: ug/m3 | H9: ug/m3 | I9: ug/m3 | J9: ug/m3 | K9: ug/m3 | L9: ug/m3 | M9: ug/m3 | N9: ug/m3 | O9: ug/m3 | P9: ug/m3 | Q9: ug/m3 | R9: ug/m3 | S9: ug/m3 | T9: ug/m3 | U9: ug/m3 | V9: ug/m3 | W9: ug/m3 | X9: ug/m3
D10: Low | E10: High | F10: col.code | G10: 0 | J10: 0 | O10: 0 | R10: 0 | W10: 0
B11: 1 | C11: Low | D11: 0 | E11: 1 | F11: 43 | G11: 11 | J11: 16 | O11: 88 | R11: 67 | W11: 33
B12: 2 | C12: Low | D12: 1 | E12: 2 | F12: 43 | G12: 23 | J12: 33 | O12: 177 | R12: 134 | W12: 66
B13: 3 | C13: Low | D13: 2 | E13: 3 | F13: 43 | G13: 35 | J13: 50 | O13: 266 | R13: 200 | W13: 100
B14: 4 | C14: Moderate | D14: 3 | E14: 4 | F14: 27 | G14: 41 | J14: 58 | O14: 354 | R14: 267 | W14: 120
B15: 5 | C15: Moderate | D15: 4 | E15: 5 | F15: 44 | G15: 47 | J15: 66 | O15: 443 | R15: 334 | W15: 140
B16: 6 | C16: Moderate | D16: 5 | E16: 6 | F16: 45 | G16: 53 | J16: 75 | O16: 532 | R16: 400 | W16: 160
B17: 7 | C17: High | D17: 6 | E17: 7 | F17: 46 | G17: 58 | J17: 83 | O17: 710 | R17: 467 | W17: 187
B18: 8 | C18: High | D18: 7 | E18: 8 | F18: 3 | G18: 64 | J18: 91 | O18: 887 | R18: 534 | W18: 213
B19: 9 | C19: High | D19: 8 | E19: 9 | F19: 53 | G19: 70 | J19: 100 | O19: 1064 | R19: 600 | W19: 240
B20: 10 | C20: Very High | D20: 9 | E20: 10 | F20: 13 | G20: 100 | J20: 150 | O20: 1500 | R20: 1000 | W20: 300

Sheet aqi_breaks_india
B1: 4 | C1: INDIA AQI Break Points Information
B5: Number of bins | D5: Number of polls | G5: Break Points
B6: =MAX(B11:B20) -> 6 | D6: =MAX(G6:X6) -> 18 | G6: 1 | H6: 2 | I6: 3 | J6: 4 | K6: 5 | L6: 6 | M6: 7 | N6: 8 | O6: 9 | P6: 10 | Q6: 11 | R6: 12 | S6: 13 | T6: 14 | U6: 15 | V6: 16 | W6: 17 | X6: 18
G7: PM2.5 | H7: PM2.5 | I7: PM2.5 | J7: PM10 | K7: PM10 | L7: PM10 | M7: SO2 | N7: SO2 | O7: SO2 | P7: NO2 | Q7: NO2 | R7: NO2 | S7: CO | T7: CO | U7: CO | V7: Ozone | W7: Ozone | X7: Ozone
G8: 24hr | H8: 8hr | I8: 1hr | J8: 24hr | K8: 8hr | L8: 1hr | M8: 24hr | N8: 8hr | O8: 1hr | P8: 24hr | Q8: 8hr | R8: 1hr | S8: 24hr | T8: 8hr | U8: 1hr | V8: 24hr | W8: 8hr | X8: 1hr
D9: AQI | G9: ug/m3 | H9: ug/m3 | I9: ug/m3 | J9: ug/m3 | K9: ug/m3 | L9: ug/m3 | M9: ug/m3 | N9: ug/m3 | O9: ug/m3 | P9: ug/m3 | Q9: ug/m3 | R9: ug/m3 | S9: ug/m3 | T9: ug/m3 | U9: ug/m3 | V9: ug/m3 | W9: ug/m3 | X9: ug/m3
D10: Low | E10: High | F10: col.code | G10: 0 | J10: 0 | M10: 0 | P10: 0 | T10: 0 | W10: 0
B11: 1 | C11: Good | D11: 0 | E11: 50 | F11: 10 | G11: 30 | J11: 50 | M11: 40 | P11: 40 | T11: 1000 | W11: 50
B12: 2 | C12: Satisfactory | D12: 50 | E12: 100 | F12: 43 | G12: 60 | J12: 100 | M12: 80 | P12: 80 | T12: 2000 | W12: 100
B13: 3 | C13: Moderate | D13: 100 | E13: 200 | F13: 6 | G13: 90 | J13: 250 | M13: 380 | P13: 180 | T13: 10000 | W13: 168
B14: 4 | C14: Poor | D14: 200 | E14: 300 | F14: 45 | G14: 120 | J14: 350 | M14: 800 | P14: 280 | T14: 17000 | W14: 208
B15: 5 | C15: Very Poor | D15: 300 | E15: 400 | F15: 3 | G15: 250 | J15: 430 | M15: 1600 | P15: 400 | T15: 34000 | W15: 748
B16: 6 | C16: Severe | D16: 400 | E16: 500 | F16: 9 | G16: 500 | J16: 750 | M16: 2500 | P16: 800 | T16: 50000 | W16: 1000

Sheet aqi_breaks_china
B1: 5 | C1: CHINA AQI Break Points Information
B5: Number of bins | D5: Number of polls | G5: Break Points
B6: =MAX(B11:B19) -> 6 | D6: =MAX(G6:X6) -> 18 | G6: 1 | H6: 2 | I6: 3 | J6: 4 | K6: 5 | L6: 6 | M6: 7 | N6: 8 | O6: 9 | P6: 10 | Q6: 11 | R6: 12 | S6: 13 | T6: 14 | U6: 15 | V6: 16 | W6: 17 | X6: 18
G7: PM2.5 | H7: PM2.5 | I7: PM2.5 | J7: PM10 | K7: PM10 | L7: PM10 | M7: SO2 | N7: SO2 | O7: SO2 | P7: NO2 | Q7: NO2 | R7: NO2 | S7: CO | T7: CO | U7: CO | V7: Ozone | W7: Ozone | X7: Ozone
G8: 24hr | H8: 8hr | I8: 1hr | J8: 24hr | K8: 8hr | L8: 1hr | M8: 24hr | N8: 8hr | O8: 1hr | P8: 24hr | Q8: 8hr | R8: 1hr | S8: 24hr | T8: 8hr | U8: 1hr | V8: 24hr | W8: 8hr | X8: 1hr
D9: AQI | G9: ug/m3 | H9: ug/m3 | I9: ug/m3 | J9: ug/m3 | K9: ug/m3 | L9: ug/m3 | M9: ug/m3 | N9: ug/m3 | O9: ug/m3 | P9: ug/m3 | Q9: ug/m3 | R9: ug/m3 | S9: ug/m3 | T9: ug/m3 | U9: ug/m3 | V9: ug/m3 | W9: ug/m3 | X9: ug/m3
D10: Low | E10: High | F10: col.code | G10: 0 | J10: 0 | M10: 0 | P10: 0 | S10: 0 | W10: 0 | X10: 0
B11: 1 | C11: Optimal | D11: 0 | E11: 50 | F11: 4 | G11: 35 | J11: 50 | M11: 50 | P11: 40 | S11: 2000 | W11: 100 | X11: 0
B12: 2 | C12: Good | D12: 50 | E12: 100 | F12: 6 | G12: 75 | J12: 150 | M12: 150 | P12: 80 | S12: 4000 | W12: 160 | X12: 0
B13: 3 | C13: Light Pollution | D13: 100 | E13: 200 | F13: 22 | G13: 115 | J13: 350 | M13: 800 | P13: 280 | S13: 24000 | W13: 265 | X13: 0
B14: 4 | C14: Moderate Pollution | D14: 200 | E14: 300 | F14: 3 | G14: 150 | J14: 420 | M14: 1600 | P14: 565 | S14: 36000 | W14: 800 | X14: 800
B15: 5 | C15: High Pollution | D15: 300 | E15: 400 | F15: 21 | G15: 250 | J15: 500 | M15: 2100 | P15: 750 | S15: 48000 | W15: 0 | X15: 1000
B16: 6 | C16: Severe Pollution | D16: 400 | E16: 500 | F16: 30 | G16: 500 | J16: 600 | M16: 2620 | P16: 940 | S16: 60000 | W16: 0 | X16: 1200

Sheet aqi_breaks_skorea
B1: 6 | C1: S.KOREA AQI Break Points Information
B5: Number of bins | D5: Number of polls | G5: Break Points
B6: =MAX(B11:B20) -> 6 | D6: =MAX(G6:X6) -> 18 | G6: 1 | H6: 2 | I6: 3 | J6: 4 | K6: 5 | L6: 6 | M6: 7 | N6: 8 | O6: 9 | P6: 10 | Q6: 11 | R6: 12 | S6: 13 | T6: 14 | U6: 15 | V6: 16 | W6: 17 | X6: 18
G7: PM2.5 | H7: PM2.5 | I7: PM2.5 | J7: PM10 | K7: PM10 | L7: PM10 | M7: SO2 | N7: SO2 | O7: SO2 | P7: NO2 | Q7: NO2 | R7: NO2 | S7: CO | T7: CO | U7: CO | V7: Ozone | W7: Ozone | X7: Ozone
G8: 24hr | H8: 8hr | I8: 1hr | J8: 24hr | K8: 8hr | L8: 1hr | M8: 24hr | N8: 8hr | O8: 1hr | P8: 24hr | Q8: 8hr | R8: 1hr | S8: 24hr | T8: 8hr | U8: 1hr | V8: 24hr | W8: 8hr | X8: 1hr
D9: AQI | G9: ug/m3 | H9: ug/m3 | I9: ug/m3 | J9: ug/m3 | K9: ug/m3 | L9: ug/m3 | M9: ug/m3 | N9: ug/m3 | O9: ug/m3 | P9: ug/m3 | Q9: ug/m3 | R9: ug/m3 | S9: ug/m3 | T9: ug/m3 | U9: ug/m3 | V9: ug/m3 | W9: ug/m3 | X9: ug/m3
D10: Low | E10: High | F10: col.code | J10: 0 | M10: 0 | P10: 0 | T10: 0 | W10: 0
B11: 1 | C11: Good | D11: 0 | E11: 50 | F11: 43 | J11: 30 | M11: =M27*Unit_Conversion!$G$11 -> 54.13448513 | P11: =P27*Unit_Conversion!$G$12 -> 48.21352582 | T11: =T27*Unit_Conversion!$G$13 -> 2368.383725 | W11: =W27*Unit_Conversion!$G$14 -> 81.2017277
B12: 2 | C12: Moderate | D12: 50 | E12: 100 | F12: 27 | J12: 80 | M12: =M28*Unit_Conversion!$G$11 -> 135.3362128 | P12: =P28*Unit_Conversion!$G$12 -> 96.42705165 | T12: =T28*Unit_Conversion!$G$13 -> 10657.72676 | W12: =W28*Unit_Conversion!$G$14 -> 162.4034554
B13: 3 | C13: Unhealthy for Sensitive Groups | D13: 100 | E13: 150 | F13: 45 | J13: 120 | M13: =M29*Unit_Conversion!$G$11 -> 270.6724257 | P13: =P29*Unit_Conversion!$G$12 -> 241.0676291 | T13: =T29*Unit_Conversion!$G$13 -> 14210.30235 | W13: =W29*Unit_Conversion!$G$14 -> 243.6051831
B14: 4 | C14: Unhealthy | D14: 150 | E14: 250 | F14: 3 | J14: 200 | M14: =M30*Unit_Conversion!$G$11 -> 406.0086385 | P14: =P30*Unit_Conversion!$G$12 -> 321.4235055 | T14: =T30*Unit_Conversion!$G$13 -> 17762.87793 | W14: =W30*Unit_Conversion!$G$14 -> 609.0129578
B15: 5 | C15: Very Unhealthy | D15: 250 | E15: 350 | F15: 13 | J15: 300 | M15: =M31*Unit_Conversion!$G$11 -> 1082.689703 | P15: =P31*Unit_Conversion!$G$12 -> 964.2705165 | T15: =T31*Unit_Conversion!$G$13 -> 35525.75587 | W15: =W31*Unit_Conversion!$G$14 -> 1015.021596
B16: 6 | C16: Hazardous | D16: 350 | E16: 500 | F16: 9 | J16: 600 | M16: =M32*Unit_Conversion!$G$11 -> 2706.724257 | P16: =P32*Unit_Conversion!$G$12 -> 3214.235055 | T16: =T32*Unit_Conversion!$G$13 -> 59209.59312 | W16: =W32*Unit_Conversion!$G$14 -> 1218.025916
G22: Break Points
G23: 1 | H23: 2 | I23: 3 | J23: 4 | K23: 5 | L23: 6 | M23: 7 | N23: 8 | O23: 9 | P23: 10 | Q23: 11 | R23: 12 | S23: 13 | T23: 14 | U23: 15 | V23: 16 | W23: 17 | X23: 18
G24: PM2.5 | H24: PM2.5 | I24: PM2.5 | J24: PM10 | K24: PM10 | L24: PM10 | M24: SO2 | N24: SO2 | O24: SO2 | P24: NO2 | Q24: NO2 | R24: NO2 | S24: CO | T24: CO | U24: CO | V24: Ozone | W24: Ozone | X24: Ozone
G25: 24hr | H25: 8hr | I25: 1hr | J25: 24hr | K25: 8hr | L25: 1hr | M25: 24hr | N25: 8hr | O25: 1hr | P25: 24hr | Q25: 8hr | R25: 1hr | S25: 24hr | T25: 8hr | U25: 1hr | V25: 24hr | W25: 8hr | X25: 1hr
M26: ppm | P26: ppm | T26: ppm | W26: ppm
M27: 0.02 | P27: 0.03 | T27: 2 | W27: 0.04
M28: 0.05 | P28: 0.06 | T28: 9 | W28: 0.08
M29: 0.1 | P29: 0.15 | T29: 12 | W29: 0.12
M30: 0.15 | P30: 0.2 | T30: 15 | W30: 0.3
M31: 0.4 | P31: 0.6 | T31: 30 | W31: 0.5
M32: 1 | P32: 2 | T32: 50 | W32: 0.6

Sheet aqi_breaks_singapore
B1: 7 | C1: SINGAPORE AQI Break Points Information
B5: Number of bins | D5: Number of polls | G5: Break Points
B6: =MAX(B11:B20) -> 6 | D6: =MAX(G6:X6) -> 18 | G6: 1 | H6: 2 | I6: 3 | J6: 4 | K6: 5 | L6: 6 | M6: 7 | N6: 8 | O6: 9 | P6: 10 | Q6: 11 | R6: 12 | S6: 13 | T6: 14 | U6: 15 | V6: 16 | W6: 17 | X6: 18
G7: PM2.5 | H7: PM2.5 | I7: PM2.5 | J7: PM10 | K7: PM10 | L7: PM10 | M7: SO2 | N7: SO2 | O7: SO2 | P7: NO2 | Q7: NO2 | R7: NO2 | S7: CO | T7: CO | U7: CO | V7: Ozone | W7: Ozone | X7: Ozone
G8: 24hr | H8: 8hr | I8: 1hr | J8: 24hr | K8: 8hr | L8: 1hr | M8: 24hr | N8: 8hr | O8: 1hr | P8: 24hr | Q8: 8hr | R8: 1hr | S8: 24hr | T8: 8hr | U8: 1hr | V8: 24hr | W8: 8hr | X8: 1hr
D9: AQI | G9: ug/m3 | H9: ug/m3 | I9: ug/m3 | J9: ug/m3 | K9: ug/m3 | L9: ug/m3 | M9: ug/m3 | N9: ug/m3 | O9: ug/m3 | P9: ug/m3 | Q9: ug/m3 | R9: ug/m3 | S9: ug/m3 | T9: ug/m3 | U9: ug/m3 | V9: ug/m3 | W9: ug/m3 | X9: ug/m3
D10: Low | E10: High | F10: col.code | G10: 0 | J10: 0 | M10: 0 | R10: 0 | T10: 0 | W10: 0 | X10: 0
B11: 1 | C11: Good | D11: 0 | E11: 50 | F11: 43 | G11: 12 | J11: 50 | M11: 80 | R11: 0 | T11: 5000 | W11: 118 | X11: 0
B12: 2 | C12: Moderate | D12: 50 | E12: 100 | F12: 27 | G12: 55 | J12: 150 | M12: 365 | R12: 0 | T12: 10000 | W12: 157 | X12: 0
B13: 3 | C13: Unhealthy | D13: 100 | E13: 200 | F13: 45 | G13: 150 | J13: 350 | M13: 800 | R13: 1130 | T13: 17000 | W13: 235 | X13: 0
B14: 4 | C14: Very Unhealthy | D14: 200 | E14: 300 | F14: 3 | G14: 250 | J14: 420 | M14: 1600 | R14: 2260 | T14: 34000 | W14: 785 | X14: 785
B15: 5 | C15: Hazardous | D15: 300 | E15: 400 | F15: 13 | G15: 350 | J15: 500 | M15: 2100 | R15: 3000 | T15: 46000 | W15: 0 | X15: 980
B16: 6 | C16: Hazardous | D16: 400 | E16: 500 | F16: 9 | G16: 500 | J16: 600 | M16: 2620 | R16: 3750 | T16: 57500 | W16: 0 | X16: 1180
G22: Break Points
G23: 1 | H23: 2 | I23: 3 | J23: 4 | K23: 5 | L23: 6 | M23: 7 | N23: 8 | O23: 9 | P23: 10 | Q23: 11 | R23: 12 | S23: 13 | T23: 14 | U23: 15 | V23: 16 | W23: 17 | X23: 18
G24: PM2.5 | H24: PM2.5 | I24: PM2.5 | J24: PM10 | K24: PM10 | L24: PM10 | M24: SO2 | N24: SO2 | O24: SO2 | P24: NO2 | Q24: NO2 | R24: NO2 | S24: CO | T24: CO | U24: CO | V24: Ozone | W24: Ozone | X24: Ozone
G25: 24hr | H25: 8hr | I25: 1hr | J25: 24hr | K25: 8hr | L25: 1hr | M25: 24hr | N25: 8hr | O25: 1hr | P25: 24hr | Q25: 8hr | R25: 1hr | S25: 24hr | T25: 8hr | U25: 1hr | V25: 24hr | W25: 8hr | X25: 1hr
M26: ppm | P26: ppm | T26: ppm | W26: ppm
M27: 0.02 | P27: 0.03 | T27: 2 | W27: 0.04
M28: 0.05 | P28: 0.06 | T28: 9 | W28: 0.08
M29: 0.1 | P29: 0.15 | T29: 12 | W29: 0.12
M30: 0.15 | P30: 0.2 | T30: 15 | W30: 0.3
M31: 0.4 | P31: 0.6 | T31: 30 | W31: 0.5
M32: 1 | P32: 2 | T32: 50 | W32: 0.6

Sheet Equations

Sheet Unit_Conversion
B3: Conversion at temperature T [°C] and pressure p [atm]
B4: temp | C4: 15 | E4: gas constant = | I4: =22.414/273.16 -> 0.08205447357 | R4: Units
B5: press | C5: 1 | E5: volume 1 mole = | I5: =I4*(C4+273.16)/C5 -> 23.6448171 | R5: micro-g/m3
R6: mg/m3
E7: from | G7: to | I7: from | K7: to | R7: ppm
C8: MW | E8: ppm | G8: ug/m3 | I8: ppb | K8: ug/m3 | R8: ppb
B9: PM2.5 | C9: 0 | E9: 1 | F9: ð | G9: 0 | I9: 1 | J9: ð | K9: 0 | L9: <-- not supported
B10: PM10 | C10: 0 | E10: 1 | F10: ð | G10: 0 | I10: 1 | J10: ð | K10: 0 | L10: <-- not supported
B11: SO2 | C11: 64 | E11: 1 | F11: ð | G11: =E11*C11/$I$5*1000 -> 2706.724257 | I11: 1 | J11: ð | K11: =I11*C11/$I$5 -> 2.706724257
B12: NO2 | C12: 38 | E12: 1 | F12: ð | G12: =E12*C12/$I$5*1000 -> 1607.117527 | I12: 1 | J12: ð | K12: =I12*C12/$I$5 -> 1.607117527
B13: CO | C13: 28 | E13: 1 | F13: ð | G13: 1184.191862 | I13: 1 | J13: ð | K13: 1.184191862
B14: Ozone | C14: 48 | E14: 1 | F14: ð | G14: 2030.043193 | I14: 1 | J14: ð | K14: 2.030043193

Sheet break_point_tally
D3: 1 | E3: 2 | F3: 3 | G3: 4 | H3: 5 | I3: 6 | J3: 7 | K3: 8 | L3: 9 | M3: 10 | N3: 11 | O3: 12 | P3: 13 | Q3: 14 | R3: 15 | S3: 16 | T3: 17 | U3: 18
D4: PM2.5 | G4: PM10 | J4: SO2 | M4: NO2 | P4: CO | S4: Ozone | V4: NH3
D5: 24hr | E5: 8hr | F5: 1hr | G5: 24hr | H5: 8hr | I5: 1hr | J5: 24hr | K5: 8hr | L5: 1hr | M5: 24hr | N5: 8hr | O5: 1hr | P5: 24hr | Q5: 8hr | R5: 1hr | S5: 24hr | T5: 8hr | U5: 1hr | V5: 24hr | W5: 8hr | X5: 1hr
B6: 1 | C6: USA | D6: x | G6: x | J6: x | M6: x | Q6: x | T6: x | U6: x
B7: 2 | C7: EU | D7: x | G7: x | L7: x | O7: x | U7: x
B8: 3 | C8: UK | D8: x | G8: x | L8: x | O8: x | T8: x
B9: 4 | C9: India | D9: x | G9: x | J9: x | M9: x | Q9: x | T9: x
B10: 5 | C10: China | D10: x | G10: x | J10: x | M10: x | P10: x | T10: x | U10: x
B11: 6 | C11: S.Korea | G11: x | J11: x | M11: x | Q11: x | T11: x
B12: 7 | C12: Singapore | D12: x | G12: x | J12: x | O12: x | Q12: x | T12: x | U12: x
B13: 8
B14: 9
B15: 10

Sheet Concentrations
B1: Converting all the pollutant concentrations to micro-g/m3
B5: NOTHING TO CHANGE HERE
D6: input | E6: input | I6: input | J6: output
C7: reqd.time.avg | D7: conc | E7: Unit | G7: pollname | H7: MW | I7: unit.code | J7: conc - ug/m3 | K7: <== used for AQI calculations | N7: pollname
B8: PM2.5 | C8: 24hr | D8: =Calculator!D8 -> 0 | E8: =Calculator!E8 -> 0 | G8: PM2.5 | H8: =IF(G8=0,0,INDEX(Unit_Conversion!$C$9:$C$14,MATCH(Concentrations!G8,Unit_Conversion!$B$9:$B$14,0))) -> 0 | I8: =MATCH(E8,Unit_Conversion!$R$5:$R$8,0) ->  | J8: 120 | M8: 1 | N8: =G8 & "-" & C8 -> PM2.5-24hr
C9: 8hr | D9: =Calculator!D9 -> <-- check if selection is valid or not | E9: =Calculator!E9 -> 0 | G9: PM2.5 | H9: =IF(G9=0,0,INDEX(Unit_Conversion!$C$9:$C$14,MATCH(Concentrations!G9,Unit_Conversion!$B$9:$B$14,0))) -> 0 | I9: =MATCH(E9,Unit_Conversion!$R$5:$R$8,0) ->  | J9: 0 | M9: 2 | N9: =G9 & "-" & C9 -> PM2.5-8hr
C10: 1hr | D10: =Calculator!D10 -> 0 | E10: =Calculator!E10 -> 0 | G10: PM2.5 | H10: =IF(G10=0,0,INDEX(Unit_Conversion!$C$9:$C$14,MATCH(Concentrations!G10,Unit_Conversion!$B$9:$B$14,0))) -> 0 | I10: =MATCH(E10,Unit_Conversion!$R$5:$R$8,0) ->  | J10: 0 | M10: 3 | N10: PM2.5-1hr
B11: PM10 | C11: 24hr | D11: =Calculator!D11 -> 0 | E11: =Calculator!E11 -> 0 | G11: PM10 | H11: =IF(G11=0,0,INDEX(Unit_Conversion!$C$9:$C$14,MATCH(Concentrations!G11,Unit_Conversion!$B$9:$B$14,0))) -> 0 | I11: =MATCH(E11,Unit_Conversion!$R$5:$R$8,0) ->  | J11: 130 | M11: 4 | N11: PM10-24hr
C12: 8hr | D12: =Calculator!D12 -> 0 | E12: =Calculator!E12 -> Points Read | G12: PM10 | H12: =IF(G12=0,0,INDEX(Unit_Conversion!$C$9:$C$14,MATCH(Concentrations!G12,Unit_Conversion!$B$9:$B$14,0))) -> 0 | I12: =MATCH(E12,Unit_Conversion!$R$5:$R$8,0) ->  | J12: 0 | M12: 5 | N12: PM10-8hr
C13: 1hr | D13: =Calculator!D13 -> 0 | E13: =Calculator!E13 -> 364 | G13: PM10 | H13: =IF(G13=0,0,INDEX(Unit_Conversion!$C$9:$C$14,MATCH(Concentrations!G13,Unit_Conversion!$B$9:$B$14,0))) -> 0 | I13: =MATCH(E13,Unit_Conversion!$R$5:$R$8,0) ->  | J13: 0 | M13: 6 | N13: PM10-1hr
B14: SO2 | C14: 24hr | D14: =Calculator!D14 -> 0 | E14: =Calculator!E14 -> 0 | G14: SO2 | H14: =IF(G14=0,0,INDEX(Unit_Conversion!$C$9:$C$14,MATCH(Concentrations!G14,Unit_Conversion!$B$9:$B$14,0))) -> 64 | I14: =MATCH(E14,Unit_Conversion!$R$5:$R$8,0) ->  | J14: 54 | M14: 7 | N14: SO2-24hr
C15: 8hr | D15: =Calculator!D15 -> 0 | E15: =Calculator!E15 -> 0 | G15: SO2 | H15: =IF(G15=0,0,INDEX(Unit_Conversion!$C$9:$C$14,MATCH(Concentrations!G15,Unit_Conversion!$B$9:$B$14,0))) -> 64 | I15: =MATCH(E15,Unit_Conversion!$R$5:$R$8,0) ->  | J15: 0 | M15: 8 | N15: SO2-8hr
C16: 1hr | D16: =Calculator!D16 -> 0 | E16: =Calculator!E16 -> 0 | G16: SO2 | H16: =IF(G16=0,0,INDEX(Unit_Conversion!$C$9:$C$14,MATCH(Concentrations!G16,Unit_Conversion!$B$9:$B$14,0))) -> 64 | I16: =MATCH(E16,Unit_Conversion!$R$5:$R$8,0) ->  | J16: 0 | M16: 9 | N16: SO2-1hr
B17: NO2 | C17: 24hr | D17: =Calculator!D17 -> 0 | E17: =Calculator!E17 -> 0 | G17: NO2 | H17: =IF(G17=0,0,INDEX(Unit_Conversion!$C$9:$C$14,MATCH(Concentrations!G17,Unit_Conversion!$B$9:$B$14,0))) -> 38 | I17: =MATCH(E17,Unit_Conversion!$R$5:$R$8,0) ->  | J17: 34 | M17: 10 | N17: NO2-24hr
C18: 8hr | D18: =Calculator!D18 -> 0 | E18: =Calculator!E18 -> 0 | G18: NO2 | H18: =IF(G18=0,0,INDEX(Unit_Conversion!$C$9:$C$14,MATCH(Concentrations!G18,Unit_Conversion!$B$9:$B$14,0))) -> 38 | I18: =MATCH(E18,Unit_Conversion!$R$5:$R$8,0) ->  | J18: 0 | M18: 11 | N18: NO2-8hr
C19: 1hr | D19: =Calculator!D19 -> 0 | E19: =Calculator!E19 -> 0 | G19: NO2 | H19: =IF(G19=0,0,INDEX(Unit_Conversion!$C$9:$C$14,MATCH(Concentrations!G19,Unit_Conversion!$B$9:$B$14,0))) -> 38 | I19: =MATCH(E19,Unit_Conversion!$R$5:$R$8,0) ->  | J19: 80 | M19: 12 | N19: NO2-1hr
B20: CO | C20: 24hr | D20: =Calculator!D20 -> 0 | E20: =Calculator!E20 -> 0 | G20: CO | H20: =IF(G20=0,0,INDEX(Unit_Conversion!$C$9:$C$14,MATCH(Concentrations!G20,Unit_Conversion!$B$9:$B$14,0))) -> 28 | I20: =MATCH(E20,Unit_Conversion!$R$5:$R$8,0) ->  | J20: 0 | M20: 13 | N20: CO-24hr
C21: 8hr | D21: =Calculator!D21 -> 0 | E21: =Calculator!E21 -> 0 | G21: CO | H21: =IF(G21=0,0,INDEX(Unit_Conversion!$C$9:$C$14,MATCH(Concentrations!G21,Unit_Conversion!$B$9:$B$14,0))) -> 28 | I21: =MATCH(E21,Unit_Conversion!$R$5:$R$8,0) ->  | J21: 2000 | M21: 14 | N21: CO-8hr
C22: 1hr | D22: =Calculator!D22 -> 0 | E22: =Calculator!E22 -> 0 | G22: CO | H22: =IF(G22=0,0,INDEX(Unit_Conversion!$C$9:$C$14,MATCH(Concentrations!G22,Unit_Conversion!$B$9:$B$14,0))) -> 28 | I22: =MATCH(E22,Unit_Conversion!$R$5:$R$8,0) ->  | J22: 10000 | M22: 15 | N22: CO-1hr
B23: Ozone | C23: 24hr | D23: =Calculator!D23 -> 0 | E23: =Calculator!E23 -> 0 | G23: Ozone | H23: =IF(G23=0,0,INDEX(Unit_Conversion!$C$9:$C$14,MATCH(Concentrations!G23,Unit_Conversion!$B$9:$B$14,0))) -> 48 | I23: =MATCH(E23,Unit_Conversion!$R$5:$R$8,0) ->  | J23: 0 | M23: 16 | N23: Ozone-24hr
C24: 8hr | D24: =Calculator!D24 -> 0 | E24: =Calculator!E24 -> 0 | G24: Ozone | H24: =IF(G24=0,0,INDEX(Unit_Conversion!$C$9:$C$14,MATCH(Concentrations!G24,Unit_Conversion!$B$9:$B$14,0))) -> 48 | I24: =MATCH(E24,Unit_Conversion!$R$5:$R$8,0) ->  | J24: 80 | M24: 17 | N24: Ozone-8hr
C25: 1hr | D25: =Calculator!D25 -> 0 | E25: =Calculator!E25 -> 0 | G25: Ozone | H25: =IF(G25=0,0,INDEX(Unit_Conversion!$C$9:$C$14,MATCH(Concentrations!G25,Unit_Conversion!$B$9:$B$14,0))) -> 48 | I25: =MATCH(E25,Unit_Conversion!$R$5:$R$8,0) ->  | J25: 200 | M25: 18 | N25: Ozone-1hr

Sheet Country
B1: Countries with AQI methodologies, included in this workbook
B5: NOTHING TO CHANGE HERE
C7: =MATCH(Calculator!$E$5,D9:D16,0) ->  | D7: <--Selected | G7: =MATCH(Calculator!$E$5,H9:H16,0) -> 2 | H7: <--Selected | J7: =MATCH(Calculator!$E$7,K9:K16,0) -> 1 | K7: <--Selected
D8: Country's | H8: pollutant | K8: time frame
C9: 1 | D9: USA | G9: 1 | H9: PM2.5 | J9: 1 | K9: 24hr
C10: 2 | D10: EU | G10: 2 | H10: PM10 | J10: 2 | K10: 8hr
C11: 3 | D11: UK | G11: 3 | H11: SO2 | J11: 3 | K11: 1hr
C12: 4 | D12: India | G12: 4 | H12: NO2 | J12: 4 | K12: XXX
C13: 5 | D13: China | G13: 5 | H13: CO | J13: 5 | K13: XXX
C14: 6 | D14: S.Korea | G14: 6 | H14: Ozone | J14: 6 | K14: XXX
C15: 7 | D15: Singapore | G15: 7 | H15: XXX | J15: 7 | K15: XXX
C16: 8 | D16: AAD | G16: 8 | H16: XXX | J16: 8 | K16: XXX
